Department family,Entity,Date,Expense type,Expense area,Supplier,Transaction number,Amount
Department of Health,Leicestershire Partnership NHS Trust,01/03/22,Rent,"OSL House (P54, LPT)",CABOT TRUSTEES LTD,068,41700.00
Department of Health,Leicestershire Partnership NHS Trust,01/03/22,Rent,Bridge Park Plaza - First Floor (LPT),FISHER HARG PROCT LTD,672857,80507.52
Department of Health,Leicestershire Partnership NHS Trust,01/03/22,Course / Training Expenses,Psychology & Psychological Therapies Mgt,OPEN DIALOGUE APPROACH UK LTD,ODUK-0917,70200.00
Department of Health,Leicestershire Partnership NHS Trust,01/03/22,Crs_NHS_LT1y -Resus Inventory Supplied.,Balance Sheet Collection,SUPPLY CHAIN CO LTD,1122221659,26350.09
Department of Health,Leicestershire Partnership NHS Trust,01/03/22,Computer License  Fees,Finance Department,VERSION 1,INVSOL012432,37544.40
Department of Health,Leicestershire Partnership NHS Trust,01/03/22,Payroll Deductions -Salary Sacrifice Cars Scheme,Balance Sheet Collection,TUSKER,57504,33063.19
Department of Health,Leicestershire Partnership NHS Trust,01/03/22,WIP Project Not in BS - Information Technology,Work in Progress,VERSION 1,INVSOL012486,31950.00
Department of Health,Leicestershire Partnership NHS Trust,02/03/22,Rent,"St Peters Health Center (Part 1st and 2nd floors) (P66, LPT)",LEICESTER LIFT CO,LEP1/SI0955,27433.45
Department of Health,Leicestershire Partnership NHS Trust,02/03/22,Unitary Payment,"The Agnes Unit (AKA Assessment and Treatment Centre) (P85, LPT)",ARDEN PARTNERSHIP (LEICESTER),SI0089,115285.91
Department of Health,Leicestershire Partnership NHS Trust,02/03/22,External Data Processing / Storage,Records & information Governance,H COATES LTD/TA C&V DATA,4008419,32062.97
Department of Health,Leicestershire Partnership NHS Trust,02/03/22,Medical Equipment Repairs / Maintenance,Medical Devices Maintenance (LPT),SUPPLY CHAIN CO LTD,2122007258,39848.46
Department of Health,Leicestershire Partnership NHS Trust,02/03/22,Healthcare Services / Recharges from Non-NHS Bodies,AMH - Central Access Point,TURNING POINT,SI-TPS-00038076,21486.83
Department of Health,Leicestershire Partnership NHS Trust,02/03/22,Contract : Accomodation,Crisis House and Cafe,TURNING POINT,SI-TPS-00038186,96937.75
Department of Health,Leicestershire Partnership NHS Trust,03/03/22,Services / Recharges from NHS Trusts,Inter Unit I & E Distribution,UHL NHS TRUST (RWE),L0258026,42801.66
Department of Health,Leicestershire Partnership NHS Trust,03/03/22,Occupational Health,HR Operations,UHL NHS TRUST (RWE),L0256797,35290.00
Department of Health,Leicestershire Partnership NHS Trust,03/03/22,Computer Hardware,HIS Infrastructure,PHOENIX SOFTWARE LTD,OP/I923433,73487.03
Department of Health,Leicestershire Partnership NHS Trust,03/03/22,Services / Recharges from NHS Trusts,Inter Unit I & E Distribution,UHL NHS TRUST (RWE),L0258042,144923.71
Department of Health,Leicestershire Partnership NHS Trust,03/03/22,Services / Recharges from NHS Trusts,Inter Unit I & E Distribution,UHL NHS TRUST (RWE),L0258043,144923.71
Department of Health,Leicestershire Partnership NHS Trust,03/03/22,WIP Project Not in BS - Buildings excl Dwellings,Work in Progress,TILBURY DOUGLAS CONSTRUCTION LTD,22030057,64247.48
Department of Health,Leicestershire Partnership NHS Trust,04/03/22,WIP Project Not in BS - Buildings excl Dwellings,Work in Progress,TILBURY DOUGLAS CONSTRUCTION LTD,22030049,189681.70
Department of Health,Leicestershire Partnership NHS Trust,04/03/22,Nurse - Band 6 -Agency,CAMHS HUB / CAP,HCL SOCIAL CARE,HWSI0001052,9696.76
Department of Health,Leicestershire Partnership NHS Trust,04/03/22,Nurse - Band 6 -Agency,CAMHS Waiting List Monies,HCL SOCIAL CARE,HWSI0001052,23057.54
Department of Health,Leicestershire Partnership NHS Trust,04/03/22,Nurse - Band 6 -Agency,Crisis Response and Home Treatment,HCL SOCIAL CARE,HWSI0001052,2022.99
Department of Health,Leicestershire Partnership NHS Trust,04/03/22,NURSE - BAND 2 - AGENCY,CAMHS Inpatient Service,HCL NURSING,HNSI0000953,13986.65
Department of Health,Leicestershire Partnership NHS Trust,04/03/22,NURSE - BAND 5 - AGENCY,CAMHS Inpatient Service,HCL NURSING,HNSI0000953,3814.68
Department of Health,Leicestershire Partnership NHS Trust,04/03/22,Nurse - Band 6 -Agency,CAMHS Inpatient Service,HCL NURSING,HNSI0000953,414.88
Department of Health,Leicestershire Partnership NHS Trust,04/03/22,Nurse - Band 6 -Agency,CAMHS Waiting List Monies,HCL NURSING,HNSI0000953,5994.13
Department of Health,Leicestershire Partnership NHS Trust,04/03/22,NURSE - BAND 2 - AGENCY,Langley Ward ED Inpatient Service,HCL NURSING,HNSI0000953,174.72
Department of Health,Leicestershire Partnership NHS Trust,04/03/22,NURSE - BAND 5 - AGENCY,Langley Ward ED Inpatient Service,HCL NURSING,HNSI0000953,3113.19
Department of Health,Leicestershire Partnership NHS Trust,04/03/22,Nurse - Band 6 -Agency,AMH - Central Access Point,HCL NURSING,HNSI0000951,3455.60
Department of Health,Leicestershire Partnership NHS Trust,04/03/22,Nurse - Band 6 -Agency,Adult County Charnwood CMHT - Loughborough Base,HCL NURSING,HNSI0000951,1384.43
Department of Health,Leicestershire Partnership NHS Trust,04/03/22,Nurse - Band 6 -Agency,Adult County West Leicestershire CMHT,HCL NURSING,HNSI0000951,1069.97
Department of Health,Leicestershire Partnership NHS Trust,04/03/22,NURSE - BAND 2 - AGENCY,Agnes Unit Management,HCL NURSING,HNSI0000951,20216.21
Department of Health,Leicestershire Partnership NHS Trust,04/03/22,NURSE - BAND 5 - AGENCY,Agnes Unit Management,HCL NURSING,HNSI0000951,18828.51
Department of Health,Leicestershire Partnership NHS Trust,04/03/22,NURSE - BAND 2 - AGENCY,Ashby Ward (Bradgate Unit),HCL NURSING,HNSI0000951,1641.77
Department of Health,Leicestershire Partnership NHS Trust,04/03/22,NURSE - BAND 5 - AGENCY,Ashby Ward (Bradgate Unit),HCL NURSING,HNSI0000951,3109.59
Department of Health,Leicestershire Partnership NHS Trust,04/03/22,NURSE - BAND 2 - AGENCY,Aston Ward (Bradgate Unit),HCL NURSING,HNSI0000951,4028.41
Department of Health,Leicestershire Partnership NHS Trust,04/03/22,NURSE - BAND 5 - AGENCY,Aston Ward (Bradgate Unit),HCL NURSING,HNSI0000951,10764.38
Department of Health,Leicestershire Partnership NHS Trust,04/03/22,NURSE - BAND 2 - AGENCY,Beaumont Ward - Bradgate Unit,HCL NURSING,HNSI0000951,8430.92
Department of Health,Leicestershire Partnership NHS Trust,04/03/22,NURSE - BAND 5 - AGENCY,Beaumont Ward - Bradgate Unit,HCL NURSING,HNSI0000951,5337.99
Department of Health,Leicestershire Partnership NHS Trust,04/03/22,NURSE - BAND 2 - AGENCY,Belvoir Psychiatric Intensive Care Unit,HCL NURSING,HNSI0000951,-3118.84
Department of Health,Leicestershire Partnership NHS Trust,04/03/22,NURSE - BAND 5 - AGENCY,Belvoir Psychiatric Intensive Care Unit,HCL NURSING,HNSI0000951,6090.01
Department of Health,Leicestershire Partnership NHS Trust,04/03/22,NURSE - BAND 2 - AGENCY,Cedar (Willows),HCL NURSING,HNSI0000951,3605.92
Department of Health,Leicestershire Partnership NHS Trust,04/03/22,NURSE - BAND 5 - AGENCY,Cedar (Willows),HCL NURSING,HNSI0000951,1986.73
Department of Health,Leicestershire Partnership NHS Trust,04/03/22,NURSE - BAND 2 - AGENCY,Coleman Ward,HCL NURSING,HNSI0000951,5790.08
Department of Health,Leicestershire Partnership NHS Trust,04/03/22,NURSE - BAND 5 - AGENCY,Coleman Ward,HCL NURSING,HNSI0000951,6065.09
Department of Health,Leicestershire Partnership NHS Trust,04/03/22,NURSE - BAND 5 - AGENCY,Crisis Resolution,HCL NURSING,HNSI0000951,1446.27
Department of Health,Leicestershire Partnership NHS Trust,04/03/22,Nurse - Band 6 -Agency,Crisis Resolution,HCL NURSING,HNSI0000951,1832.46
Department of Health,Leicestershire Partnership NHS Trust,04/03/22,NURSE - BAND 2 - AGENCY,Griffin Ward (HPC),HCL NURSING,HNSI0000951,9407.98
Department of Health,Leicestershire Partnership NHS Trust,04/03/22,NURSE - BAND 5 - AGENCY,Griffin Ward (HPC),HCL NURSING,HNSI0000951,8485.75
Department of Health,Leicestershire Partnership NHS Trust,04/03/22,NURSE - BAND 2 - AGENCY,Heather Ward,HCL NURSING,HNSI0000951,5960.12
Department of Health,Leicestershire Partnership NHS Trust,04/03/22,NURSE - BAND 5 - AGENCY,Heather Ward,HCL NURSING,HNSI0000951,8040.72
Department of Health,Leicestershire Partnership NHS Trust,04/03/22,NURSE - BAND 2 - AGENCY,Kirby Ward,HCL NURSING,HNSI0000951,7162.57
Department of Health,Leicestershire Partnership NHS Trust,04/03/22,NURSE - BAND 5 - AGENCY,Kirby Ward,HCL NURSING,HNSI0000951,637.15
Department of Health,Leicestershire Partnership NHS Trust,04/03/22,NURSE - BAND 2 - AGENCY,Maple Ward,HCL NURSING,HNSI0000951,3324.82
Department of Health,Leicestershire Partnership NHS Trust,04/03/22,NURSE - BAND 5 - AGENCY,Maple Ward,HCL NURSING,HNSI0000951,1086.70
Department of Health,Leicestershire Partnership NHS Trust,04/03/22,NURSE - BAND 2 - AGENCY,Mill Lodge,HCL NURSING,HNSI0000951,2467.17
Department of Health,Leicestershire Partnership NHS Trust,04/03/22,NURSE - BAND 5 - AGENCY,Mill Lodge,HCL NURSING,HNSI0000951,9158.51
Department of Health,Leicestershire Partnership NHS Trust,04/03/22,NURSE - BAND 2 - AGENCY,Phoenix Ward (HPC),HCL NURSING,HNSI0000951,6629.50
Department of Health,Leicestershire Partnership NHS Trust,04/03/22,NURSE - BAND 5 - AGENCY,Phoenix Ward (HPC),HCL NURSING,HNSI0000951,1946.28
Department of Health,Leicestershire Partnership NHS Trust,04/03/22,NURSE - BAND 2 - AGENCY,Place Of Safety Assessment Unit,HCL NURSING,HNSI0000951,2011.59
Department of Health,Leicestershire Partnership NHS Trust,04/03/22,NURSE - BAND 5 - AGENCY,Place Of Safety Assessment Unit,HCL NURSING,HNSI0000951,2977.85
Department of Health,Leicestershire Partnership NHS Trust,04/03/22,NURSE - BAND 2 - AGENCY,Stewart House,HCL NURSING,HNSI0000951,147.10
Department of Health,Leicestershire Partnership NHS Trust,04/03/22,NURSE - BAND 5 - AGENCY,Stewart House,HCL NURSING,HNSI0000951,301.96
Department of Health,Leicestershire Partnership NHS Trust,04/03/22,NURSE - BAND 2 - AGENCY,Sycamore (Willows),HCL NURSING,HNSI0000951,4139.66
Department of Health,Leicestershire Partnership NHS Trust,04/03/22,NURSE - BAND 5 - AGENCY,Sycamore (Willows),HCL NURSING,HNSI0000951,5240.87
Department of Health,Leicestershire Partnership NHS Trust,04/03/22,NURSE - BAND 2 - AGENCY,Thornton Ward - Bradgate Unit,HCL NURSING,HNSI0000951,289.32
Department of Health,Leicestershire Partnership NHS Trust,04/03/22,NURSE - BAND 2 - AGENCY,Watermead Ward (Bradgate Unit),HCL NURSING,HNSI0000951,2111.51
Department of Health,Leicestershire Partnership NHS Trust,04/03/22,NURSE - BAND 5 - AGENCY,Watermead Ward (Bradgate Unit),HCL NURSING,HNSI0000951,3053.48
Department of Health,Leicestershire Partnership NHS Trust,04/03/22,NURSE - BAND 2 - AGENCY,Welford Ward,HCL NURSING,HNSI0000951,3930.79
Department of Health,Leicestershire Partnership NHS Trust,04/03/22,NURSE - BAND 5 - AGENCY,Welford Ward,HCL NURSING,HNSI0000951,480.15
Department of Health,Leicestershire Partnership NHS Trust,04/03/22,WIP Project Not in BS - Buildings excl Dwellings,Work in Progress,TILBURY DOUGLAS CONSTRUCTION LTD,22030028,40909.09
Department of Health,Leicestershire Partnership NHS Trust,04/03/22,WIP Project Not in BS - Buildings excl Dwellings,Work in Progress,TILBURY DOUGLAS CONSTRUCTION LTD,22030030,27488.96
Department of Health,Leicestershire Partnership NHS Trust,04/03/22,WIP Project Not in BS - Buildings excl Dwellings,Work in Progress,TILBURY DOUGLAS CONSTRUCTION LTD,22030031,34248.53
Department of Health,Leicestershire Partnership NHS Trust,04/03/22,WIP Project Not in BS - Buildings excl Dwellings,Work in Progress,TILBURY DOUGLAS CONSTRUCTION LTD,22030033,26884.76
Department of Health,Leicestershire Partnership NHS Trust,04/03/22,WIP Project Not in BS - Buildings excl Dwellings,Work in Progress,TILBURY DOUGLAS CONSTRUCTION LTD,22030034,155678.46
Department of Health,Leicestershire Partnership NHS Trust,04/03/22,WIP Project Not in BS - Buildings excl Dwellings,Work in Progress,TILBURY DOUGLAS CONSTRUCTION LTD,22030036,49458.82
Department of Health,Leicestershire Partnership NHS Trust,04/03/22,WIP Project Not in BS - Buildings excl Dwellings,Work in Progress,TILBURY DOUGLAS CONSTRUCTION LTD,22030038,48064.66
Department of Health,Leicestershire Partnership NHS Trust,04/03/22,WIP Project Not in BS - Buildings excl Dwellings,Work in Progress,TILBURY DOUGLAS CONSTRUCTION LTD,22030039,105924.11
Department of Health,Leicestershire Partnership NHS Trust,04/03/22,WIP Project Not in BS - Buildings excl Dwellings,Work in Progress,TILBURY DOUGLAS CONSTRUCTION LTD,22030040,77628.70
Department of Health,Leicestershire Partnership NHS Trust,04/03/22,WIP Project Not in BS - Buildings excl Dwellings,Work in Progress,TILBURY DOUGLAS CONSTRUCTION LTD,22030043,47373.64
Department of Health,Leicestershire Partnership NHS Trust,04/03/22,WIP Project Not in BS - Buildings excl Dwellings,Work in Progress,TILBURY DOUGLAS CONSTRUCTION LTD,22030044,26043.76
Department of Health,Leicestershire Partnership NHS Trust,04/03/22,WIP Project Not in BS - Buildings excl Dwellings,Work in Progress,TILBURY DOUGLAS CONSTRUCTION LTD,22030046,44852.57
Department of Health,Leicestershire Partnership NHS Trust,04/03/22,Nurse - Band 6 -Agency,AMH - Central Access Point,HCL NURSING,HNSI0000957,3843.45
Department of Health,Leicestershire Partnership NHS Trust,04/03/22,Nurse - Band 6 -Agency,Adult County West Leicestershire CMHT,HCL NURSING,HNSI0000957,1069.97
Department of Health,Leicestershire Partnership NHS Trust,04/03/22,NURSE - BAND 2 - AGENCY,Agnes Unit Management,HCL NURSING,HNSI0000957,26746.21
Department of Health,Leicestershire Partnership NHS Trust,04/03/22,NURSE - BAND 5 - AGENCY,Agnes Unit Management,HCL NURSING,HNSI0000957,17959.13
Department of Health,Leicestershire Partnership NHS Trust,04/03/22,NURSE - BAND 5 - AGENCY,Ashby Ward (Bradgate Unit),HCL NURSING,HNSI0000957,3606.14
Department of Health,Leicestershire Partnership NHS Trust,04/03/22,NURSE - BAND 2 - AGENCY,Aston Ward (Bradgate Unit),HCL NURSING,HNSI0000957,3293.43
Department of Health,Leicestershire Partnership NHS Trust,04/03/22,NURSE - BAND 5 - AGENCY,Aston Ward (Bradgate Unit),HCL NURSING,HNSI0000957,10733.00
Department of Health,Leicestershire Partnership NHS Trust,04/03/22,NURSE - BAND 2 - AGENCY,Beaumont Ward - Bradgate Unit,HCL NURSING,HNSI0000957,19560.19
Department of Health,Leicestershire Partnership NHS Trust,04/03/22,NURSE - BAND 5 - AGENCY,Beaumont Ward - Bradgate Unit,HCL NURSING,HNSI0000957,12443.35
Department of Health,Leicestershire Partnership NHS Trust,04/03/22,NURSE - BAND 2 - AGENCY,Belvoir Psychiatric Intensive Care Unit,HCL NURSING,HNSI0000957,1680.25
Department of Health,Leicestershire Partnership NHS Trust,04/03/22,NURSE - BAND 5 - AGENCY,Belvoir Psychiatric Intensive Care Unit,HCL NURSING,HNSI0000957,4799.13
Department of Health,Leicestershire Partnership NHS Trust,04/03/22,NURSE - BAND 2 - AGENCY,Cedar (Willows),HCL NURSING,HNSI0000957,5384.34
Department of Health,Leicestershire Partnership NHS Trust,04/03/22,NURSE - BAND 5 - AGENCY,Cedar (Willows),HCL NURSING,HNSI0000957,2047.20
Department of Health,Leicestershire Partnership NHS Trust,04/03/22,Nurse - Band 6 -Agency,City West CMHT MHSOP,HCL NURSING,HNSI0000957,1161.75
Department of Health,Leicestershire Partnership NHS Trust,04/03/22,NURSE - BAND 2 - AGENCY,Coleman Ward,HCL NURSING,HNSI0000957,6026.27
Department of Health,Leicestershire Partnership NHS Trust,04/03/22,NURSE - BAND 5 - AGENCY,Coleman Ward,HCL NURSING,HNSI0000957,5559.45
Department of Health,Leicestershire Partnership NHS Trust,04/03/22,NURSE - BAND 5 - AGENCY,Crisis Resolution,HCL NURSING,HNSI0000957,6.72
Department of Health,Leicestershire Partnership NHS Trust,04/03/22,Nurse - Band 6 -Agency,Crisis Resolution,HCL NURSING,HNSI0000957,3511.80
Department of Health,Leicestershire Partnership NHS Trust,04/03/22,NURSE - BAND 2 - AGENCY,Griffin Ward (HPC),HCL NURSING,HNSI0000957,11989.62
Department of Health,Leicestershire Partnership NHS Trust,04/03/22,NURSE - BAND 5 - AGENCY,Griffin Ward (HPC),HCL NURSING,HNSI0000957,8936.72
Department of Health,Leicestershire Partnership NHS Trust,04/03/22,NURSE - BAND 2 - AGENCY,Heather Ward,HCL NURSING,HNSI0000957,4074.75
Department of Health,Leicestershire Partnership NHS Trust,04/03/22,NURSE - BAND 5 - AGENCY,Heather Ward,HCL NURSING,HNSI0000957,5990.44
Department of Health,Leicestershire Partnership NHS Trust,04/03/22,NURSE - BAND 2 - AGENCY,Kirby Ward,HCL NURSING,HNSI0000957,7109.87
Department of Health,Leicestershire Partnership NHS Trust,04/03/22,NURSE - BAND 5 - AGENCY,Kirby Ward,HCL NURSING,HNSI0000957,4476.60
Department of Health,Leicestershire Partnership NHS Trust,04/03/22,NURSE - BAND 2 - AGENCY,Maple Ward,HCL NURSING,HNSI0000957,4469.65
Department of Health,Leicestershire Partnership NHS Trust,04/03/22,NURSE - BAND 5 - AGENCY,Maple Ward,HCL NURSING,HNSI0000957,1348.62
Department of Health,Leicestershire Partnership NHS Trust,04/03/22,Nurse - Band 6 -Agency,Mental Health Liaison Team,HCL NURSING,HNSI0000957,1773.46
Department of Health,Leicestershire Partnership NHS Trust,04/03/22,NURSE - BAND 2 - AGENCY,Mill Lodge,HCL NURSING,HNSI0000957,2745.41
Department of Health,Leicestershire Partnership NHS Trust,04/03/22,NURSE - BAND 5 - AGENCY,Mill Lodge,HCL NURSING,HNSI0000957,7005.54
Department of Health,Leicestershire Partnership NHS Trust,04/03/22,NURSE - BAND 2 - AGENCY,Phoenix Ward (HPC),HCL NURSING,HNSI0000957,2279.20
Department of Health,Leicestershire Partnership NHS Trust,04/03/22,NURSE - BAND 5 - AGENCY,Phoenix Ward (HPC),HCL NURSING,HNSI0000957,1954.27
Department of Health,Leicestershire Partnership NHS Trust,04/03/22,NURSE - BAND 2 - AGENCY,Place Of Safety Assessment Unit,HCL NURSING,HNSI0000957,376.23
Department of Health,Leicestershire Partnership NHS Trust,04/03/22,NURSE - BAND 5 - AGENCY,Place Of Safety Assessment Unit,HCL NURSING,HNSI0000957,6596.69
Department of Health,Leicestershire Partnership NHS Trust,04/03/22,NURSE - BAND 2 - AGENCY,Stewart House,HCL NURSING,HNSI0000957,468.95
Department of Health,Leicestershire Partnership NHS Trust,04/03/22,NURSE - BAND 5 - AGENCY,Stewart House,HCL NURSING,HNSI0000957,1385.72
Department of Health,Leicestershire Partnership NHS Trust,04/03/22,NURSE - BAND 2 - AGENCY,Sycamore (Willows),HCL NURSING,HNSI0000957,3716.69
Department of Health,Leicestershire Partnership NHS Trust,04/03/22,NURSE - BAND 5 - AGENCY,Sycamore (Willows),HCL NURSING,HNSI0000957,5880.32
Department of Health,Leicestershire Partnership NHS Trust,04/03/22,NURSE - BAND 2 - AGENCY,Thornton Ward - Bradgate Unit,HCL NURSING,HNSI0000957,1215.82
Department of Health,Leicestershire Partnership NHS Trust,04/03/22,NURSE - BAND 5 - AGENCY,Thornton Ward - Bradgate Unit,HCL NURSING,HNSI0000957,1410.89
Department of Health,Leicestershire Partnership NHS Trust,04/03/22,NURSE - BAND 2 - AGENCY,Watermead Ward (Bradgate Unit),HCL NURSING,HNSI0000957,1723.46
Department of Health,Leicestershire Partnership NHS Trust,04/03/22,NURSE - BAND 5 - AGENCY,Watermead Ward (Bradgate Unit),HCL NURSING,HNSI0000957,8540.50
Department of Health,Leicestershire Partnership NHS Trust,04/03/22,NURSE - BAND 2 - AGENCY,Welford Ward,HCL NURSING,HNSI0000957,4153.89
Department of Health,Leicestershire Partnership NHS Trust,04/03/22,NURSE - BAND 5 - AGENCY,Welford Ward,HCL NURSING,HNSI0000957,1707.41
Department of Health,Leicestershire Partnership NHS Trust,04/03/22,Nurse - Band 6 -Agency,CAMHS HUB / CAP,HCL SOCIAL CARE,HWSI0001068,6288.07
Department of Health,Leicestershire Partnership NHS Trust,04/03/22,Nurse - Band 6 -Agency,CAMHS Waiting List Monies,HCL SOCIAL CARE,HWSI0001068,27461.89
Department of Health,Leicestershire Partnership NHS Trust,04/03/22,Nurse - Band 6 -Agency,Crisis Response and Home Treatment,HCL SOCIAL CARE,HWSI0001068,1987.33
Department of Health,Leicestershire Partnership NHS Trust,04/03/22,NURSE - BAND 2 - AGENCY,CAMHS ED Team,HCL NURSING,HNSI0000959,2981.09
Department of Health,Leicestershire Partnership NHS Trust,04/03/22,NURSE - BAND 2 - AGENCY,CAMHS Inpatient Service,HCL NURSING,HNSI0000959,20495.45
Department of Health,Leicestershire Partnership NHS Trust,04/03/22,NURSE - BAND 5 - AGENCY,CAMHS Inpatient Service,HCL NURSING,HNSI0000959,5661.45
Department of Health,Leicestershire Partnership NHS Trust,04/03/22,Nurse - Band 6 -Agency,CAMHS Inpatient Service,HCL NURSING,HNSI0000959,1206.46
Department of Health,Leicestershire Partnership NHS Trust,04/03/22,Nurse - Band 6 -Agency,CAMHS Waiting List Monies,HCL NURSING,HNSI0000959,11951.52
Department of Health,Leicestershire Partnership NHS Trust,04/03/22,NURSE - BAND 2 - AGENCY,Langley Ward ED Inpatient Service,HCL NURSING,HNSI0000959,1791.24
Department of Health,Leicestershire Partnership NHS Trust,04/03/22,NURSE - BAND 5 - AGENCY,Langley Ward ED Inpatient Service,HCL NURSING,HNSI0000959,3758.84
Department of Health,Leicestershire Partnership NHS Trust,04/03/22,HIS LPT Costs,HIS,CAREFLOW MEDS MAN LTD,031274,148976.10
Department of Health,Leicestershire Partnership NHS Trust,07/03/22,Crs_NHS_LT1y -Resus Inventory Supplied.,Balance Sheet Collection,SUPPLY CHAIN CO LTD,1122227803,32426.57
Department of Health,Leicestershire Partnership NHS Trust,08/03/22,WIP Project Not in BS - Information Technology,Work in Progress,SYNANETICS LTD,INV-00363,204000.00
Department of Health,Leicestershire Partnership NHS Trust,08/03/22,Med Trainees - FY1,Medical Trainees,UHL NHS TRUST (RWE),L0258083,29064.36
Department of Health,Leicestershire Partnership NHS Trust,08/03/22,Med Trainees - FY1,Medical Trainees,UHL NHS TRUST (RWE),L0258082,29282.04
Department of Health,Leicestershire Partnership NHS Trust,09/03/22,HR / Payroll Services,HR Employment Services,LINCOLNSHIRE PART NHSFT(RP7),L0000174,29360.87
Department of Health,Leicestershire Partnership NHS Trust,10/03/22,Other Non-Medical Supplies & Services,Research Protected Income,LOUGHBOROUGH UNIVERSITY,51952940,36404.46
Department of Health,Leicestershire Partnership NHS Trust,10/03/22,Minor Works,Adult County West Leicestershire CMHT,UHL NHS TRUST (RWE),L0258183,88.00
Department of Health,Leicestershire Partnership NHS Trust,10/03/22,Minor Works,Children's Occupational Therapy,UHL NHS TRUST (RWE),L0258183,114.00
Department of Health,Leicestershire Partnership NHS Trust,10/03/22,Minor Works,"Evington Centre (P6, LPT)",UHL NHS TRUST (RWE),L0258183,15696.38
Department of Health,Leicestershire Partnership NHS Trust,10/03/22,Minor Works,Griffin Ward (HPC),UHL NHS TRUST (RWE),L0258183,149.00
Department of Health,Leicestershire Partnership NHS Trust,10/03/22,Minor Works,Heather Ward,UHL NHS TRUST (RWE),L0258183,948.00
Department of Health,Leicestershire Partnership NHS Trust,10/03/22,Minor Works,Langley Ward ED Inpatient Service,UHL NHS TRUST (RWE),L0258183,660.00
Department of Health,Leicestershire Partnership NHS Trust,10/03/22,Minor Works,Loughborough - Staff Vaccination Hub,UHL NHS TRUST (RWE),L0258183,1166.00
Department of Health,Leicestershire Partnership NHS Trust,10/03/22,Minor Works,N&D Primary Care and Mental Health,UHL NHS TRUST (RWE),L0258183,306.00
Department of Health,Leicestershire Partnership NHS Trust,10/03/22,Minor Works,Phoenix Ward (HPC),UHL NHS TRUST (RWE),L0258183,186.00
Department of Health,Leicestershire Partnership NHS Trust,10/03/22,Minor Works,"Rutland Memorial Hospital (P134, LPT)",UHL NHS TRUST (RWE),L0258183,675.00
Department of Health,Leicestershire Partnership NHS Trust,10/03/22,Minor Works,Stewart House,UHL NHS TRUST (RWE),L0258183,384.00
Department of Health,Leicestershire Partnership NHS Trust,10/03/22,Minor Works,"Stewart House (P61, LPT)",UHL NHS TRUST (RWE),L0258183,8112.00
Department of Health,Leicestershire Partnership NHS Trust,10/03/22,Minor Works,Urgent Care Hub,UHL NHS TRUST (RWE),L0258183,114.00
Department of Health,Leicestershire Partnership NHS Trust,10/03/22,Minor Works,"Westcotes Group - Tanglewood Resource Centre (P77, LPT)",UHL NHS TRUST (RWE),L0258183,2966.00
Department of Health,Leicestershire Partnership NHS Trust,10/03/22,Contract : Premises Security,"Loughborough Hospital (P136, LPT)",UHL NHS TRUST (RWE),L0258182,31196.25
Department of Health,Leicestershire Partnership NHS Trust,11/03/22,NURSE - BAND 2 - AGENCY,Beechwood Ward,HCL NURSING,HNSI0000958,8510.45
Department of Health,Leicestershire Partnership NHS Trust,11/03/22,NURSE - BAND 5 - AGENCY,Beechwood Ward,HCL NURSING,HNSI0000958,2555.75
Department of Health,Leicestershire Partnership NHS Trust,11/03/22,NURSE - BAND 3 - AGENCY,CHS Phlebotomy Service,HCL NURSING,HNSI0000958,38.08
Department of Health,Leicestershire Partnership NHS Trust,11/03/22,NURSE - BAND 5 - AGENCY,City Planned Care - East,HCL NURSING,HNSI0000958,10422.27
Department of Health,Leicestershire Partnership NHS Trust,11/03/22,NURSE - BAND 5 - AGENCY,City Planned Care - West,HCL NURSING,HNSI0000958,14281.65
Department of Health,Leicestershire Partnership NHS Trust,11/03/22,NURSE - BAND 2 - AGENCY,Clarendon Ward,HCL NURSING,HNSI0000958,7349.31
Department of Health,Leicestershire Partnership NHS Trust,11/03/22,NURSE - BAND 5 - AGENCY,Clarendon Ward,HCL NURSING,HNSI0000958,6241.73
Department of Health,Leicestershire Partnership NHS Trust,11/03/22,NURSE - BAND 2 - AGENCY,Coalville Snibston Ward,HCL NURSING,HNSI0000958,2480.50
Department of Health,Leicestershire Partnership NHS Trust,11/03/22,NURSE - BAND 5 - AGENCY,Coalville Snibston Ward,HCL NURSING,HNSI0000958,1462.05
Department of Health,Leicestershire Partnership NHS Trust,11/03/22,NURSE - BAND 2 - AGENCY,Coalville Ward 2,HCL NURSING,HNSI0000958,6035.91
Department of Health,Leicestershire Partnership NHS Trust,11/03/22,NURSE - BAND 5 - AGENCY,Coalville Ward 2,HCL NURSING,HNSI0000958,3585.80
Department of Health,Leicestershire Partnership NHS Trust,11/03/22,NURSE - BAND 2 - AGENCY,Dalgliesh Ward,HCL NURSING,HNSI0000958,2516.60
Department of Health,Leicestershire Partnership NHS Trust,11/03/22,NURSE - BAND 5 - AGENCY,Dalgliesh Ward,HCL NURSING,HNSI0000958,3051.79
Department of Health,Leicestershire Partnership NHS Trust,11/03/22,NURSE - BAND 5 - AGENCY,"East Planned Care - Melton,Syston,Rutland",HCL NURSING,HNSI0000958,239.46
Department of Health,Leicestershire Partnership NHS Trust,11/03/22,NURSE - BAND 5 - AGENCY,"East Planned Care - Oadby,Wigston & Harborough",HCL NURSING,HNSI0000958,951.90
Department of Health,Leicestershire Partnership NHS Trust,11/03/22,NURSE - BAND 2 - AGENCY,H&B Comm Hosp East Ward,HCL NURSING,HNSI0000958,8013.68
Department of Health,Leicestershire Partnership NHS Trust,11/03/22,NURSE - BAND 5 - AGENCY,H&B Comm Hosp East Ward,HCL NURSING,HNSI0000958,11179.27
Department of Health,Leicestershire Partnership NHS Trust,11/03/22,NURSE - BAND 2 - AGENCY,H&B Comm Hosp North Ward,HCL NURSING,HNSI0000958,7501.85
Department of Health,Leicestershire Partnership NHS Trust,11/03/22,NURSE - BAND 5 - AGENCY,H&B Comm Hosp North Ward,HCL NURSING,HNSI0000958,3408.02
Department of Health,Leicestershire Partnership NHS Trust,11/03/22,NURSE - BAND 2 - AGENCY,Lough Swithland Ward,HCL NURSING,HNSI0000958,775.01
Department of Health,Leicestershire Partnership NHS Trust,11/03/22,NURSE - BAND 5 - AGENCY,Lough Swithland Ward,HCL NURSING,HNSI0000958,2991.80
Department of Health,Leicestershire Partnership NHS Trust,11/03/22,NURSE - BAND 2 - AGENCY,Rutland Ward Nursing,HCL NURSING,HNSI0000958,4190.59
Department of Health,Leicestershire Partnership NHS Trust,11/03/22,NURSE - BAND 5 - AGENCY,Rutland Ward Nursing,HCL NURSING,HNSI0000958,925.69
Department of Health,Leicestershire Partnership NHS Trust,11/03/22,NURSE - BAND 5 - AGENCY,St Lukes Stroke Ward,HCL NURSING,HNSI0000958,2711.45
Department of Health,Leicestershire Partnership NHS Trust,11/03/22,NURSE - BAND 2 - AGENCY,St Lukes Ward 3,HCL NURSING,HNSI0000958,2649.10
Department of Health,Leicestershire Partnership NHS Trust,11/03/22,NURSE - BAND 5 - AGENCY,St Lukes Ward 3,HCL NURSING,HNSI0000958,935.06
Department of Health,Leicestershire Partnership NHS Trust,11/03/22,NURSE - BAND 2 - AGENCY,Wakerley Ward,HCL NURSING,HNSI0000958,4451.95
Department of Health,Leicestershire Partnership NHS Trust,11/03/22,NURSE - BAND 5 - AGENCY,Wakerley Ward,HCL NURSING,HNSI0000958,4284.28
Department of Health,Leicestershire Partnership NHS Trust,11/03/22,Nurse - Band 6 -Agency,CAMHS HUB / CAP,HCL SOCIAL CARE,HWSI0001076,10922.77
Department of Health,Leicestershire Partnership NHS Trust,11/03/22,Nurse - Band 6 -Agency,CAMHS Waiting List Monies,HCL SOCIAL CARE,HWSI0001076,20370.87
Department of Health,Leicestershire Partnership NHS Trust,11/03/22,Nurse - Band 6 -Agency,Crisis Response and Home Treatment,HCL SOCIAL CARE,HWSI0001076,1939.23
Department of Health,Leicestershire Partnership NHS Trust,11/03/22,NURSE - BAND 2 - AGENCY,CAMHS ED Team,HCL NURSING,HNSI0000974,9008.89
Department of Health,Leicestershire Partnership NHS Trust,11/03/22,NURSE - BAND 2 - AGENCY,CAMHS Inpatient Service,HCL NURSING,HNSI0000974,26406.73
Department of Health,Leicestershire Partnership NHS Trust,11/03/22,NURSE - BAND 5 - AGENCY,CAMHS Inpatient Service,HCL NURSING,HNSI0000974,4254.70
Department of Health,Leicestershire Partnership NHS Trust,11/03/22,Nurse - Band 6 -Agency,CAMHS Waiting List Monies,HCL NURSING,HNSI0000974,5687.92
Department of Health,Leicestershire Partnership NHS Trust,11/03/22,NURSE - BAND 2 - AGENCY,Langley Ward ED Inpatient Service,HCL NURSING,HNSI0000974,517.47
Department of Health,Leicestershire Partnership NHS Trust,11/03/22,NURSE - BAND 5 - AGENCY,Langley Ward ED Inpatient Service,HCL NURSING,HNSI0000974,4378.44
Department of Health,Leicestershire Partnership NHS Trust,11/03/22,Nurse - Band 6 -Agency,AMH - Central Access Point,HCL NURSING,HNSI0000972,3441.25
Department of Health,Leicestershire Partnership NHS Trust,11/03/22,Nurse - Band 6 -Agency,Adult County Charnwood CMHT - Loughborough Base,HCL NURSING,HNSI0000972,2482.32
Department of Health,Leicestershire Partnership NHS Trust,11/03/22,Nurse - Band 6 -Agency,Adult County West Leicestershire CMHT,HCL NURSING,HNSI0000972,1069.97
Department of Health,Leicestershire Partnership NHS Trust,11/03/22,NURSE - BAND 2 - AGENCY,Agnes Unit Management,HCL NURSING,HNSI0000972,27182.77
Department of Health,Leicestershire Partnership NHS Trust,11/03/22,NURSE - BAND 5 - AGENCY,Agnes Unit Management,HCL NURSING,HNSI0000972,18074.82
Department of Health,Leicestershire Partnership NHS Trust,11/03/22,NURSE - BAND 2 - AGENCY,Ashby Ward (Bradgate Unit),HCL NURSING,HNSI0000972,1383.02
Department of Health,Leicestershire Partnership NHS Trust,11/03/22,NURSE - BAND 5 - AGENCY,Ashby Ward (Bradgate Unit),HCL NURSING,HNSI0000972,4568.34
Department of Health,Leicestershire Partnership NHS Trust,11/03/22,NURSE - BAND 2 - AGENCY,Aston Ward (Bradgate Unit),HCL NURSING,HNSI0000972,4419.65
Department of Health,Leicestershire Partnership NHS Trust,11/03/22,NURSE - BAND 5 - AGENCY,Aston Ward (Bradgate Unit),HCL NURSING,HNSI0000972,13917.21
Department of Health,Leicestershire Partnership NHS Trust,11/03/22,NURSE - BAND 2 - AGENCY,Beaumont Ward - Bradgate Unit,HCL NURSING,HNSI0000972,8912.12
Department of Health,Leicestershire Partnership NHS Trust,11/03/22,NURSE - BAND 5 - AGENCY,Beaumont Ward - Bradgate Unit,HCL NURSING,HNSI0000972,4910.79
Department of Health,Leicestershire Partnership NHS Trust,11/03/22,NURSE - BAND 2 - AGENCY,Belvoir Psychiatric Intensive Care Unit,HCL NURSING,HNSI0000972,688.48
Department of Health,Leicestershire Partnership NHS Trust,11/03/22,NURSE - BAND 5 - AGENCY,Belvoir Psychiatric Intensive Care Unit,HCL NURSING,HNSI0000972,5586.72
Department of Health,Leicestershire Partnership NHS Trust,11/03/22,NURSE - BAND 2 - AGENCY,Cedar (Willows),HCL NURSING,HNSI0000972,2614.24
Department of Health,Leicestershire Partnership NHS Trust,11/03/22,NURSE - BAND 5 - AGENCY,Cedar (Willows),HCL NURSING,HNSI0000972,449.54
Department of Health,Leicestershire Partnership NHS Trust,11/03/22,Nurse - Band 6 -Agency,City West CMHT MHSOP,HCL NURSING,HNSI0000972,837.00
Department of Health,Leicestershire Partnership NHS Trust,11/03/22,NURSE - BAND 2 - AGENCY,Coleman Ward,HCL NURSING,HNSI0000972,1662.84
Department of Health,Leicestershire Partnership NHS Trust,11/03/22,NURSE - BAND 5 - AGENCY,Coleman Ward,HCL NURSING,HNSI0000972,7631.69
Department of Health,Leicestershire Partnership NHS Trust,11/03/22,NURSE - BAND 5 - AGENCY,Crisis Resolution,HCL NURSING,HNSI0000972,1359.12
Department of Health,Leicestershire Partnership NHS Trust,11/03/22,Nurse - Band 6 -Agency,Crisis Resolution,HCL NURSING,HNSI0000972,3449.99
Department of Health,Leicestershire Partnership NHS Trust,11/03/22,NURSE - BAND 2 - AGENCY,Griffin Ward (HPC),HCL NURSING,HNSI0000972,13926.99
Department of Health,Leicestershire Partnership NHS Trust,11/03/22,NURSE - BAND 5 - AGENCY,Griffin Ward (HPC),HCL NURSING,HNSI0000972,3852.75
Department of Health,Leicestershire Partnership NHS Trust,11/03/22,NURSE - BAND 2 - AGENCY,Heather Ward,HCL NURSING,HNSI0000972,1246.01
Department of Health,Leicestershire Partnership NHS Trust,11/03/22,NURSE - BAND 5 - AGENCY,Heather Ward,HCL NURSING,HNSI0000972,4062.34
Department of Health,Leicestershire Partnership NHS Trust,11/03/22,NURSE - BAND 2 - AGENCY,Kirby Ward,HCL NURSING,HNSI0000972,6080.63
Department of Health,Leicestershire Partnership NHS Trust,11/03/22,NURSE - BAND 5 - AGENCY,Kirby Ward,HCL NURSING,HNSI0000972,1595.46
Department of Health,Leicestershire Partnership NHS Trust,11/03/22,NURSE - BAND 2 - AGENCY,Maple Ward,HCL NURSING,HNSI0000972,269.49
Department of Health,Leicestershire Partnership NHS Trust,11/03/22,Nurse - Band 6 -Agency,Mental Health Liaison Team,HCL NURSING,HNSI0000972,1257.93
Department of Health,Leicestershire Partnership NHS Trust,11/03/22,NURSE - BAND 2 - AGENCY,Mill Lodge,HCL NURSING,HNSI0000972,656.97
Department of Health,Leicestershire Partnership NHS Trust,11/03/22,NURSE - BAND 5 - AGENCY,Mill Lodge,HCL NURSING,HNSI0000972,4559.90
Department of Health,Leicestershire Partnership NHS Trust,11/03/22,NURSE - BAND 2 - AGENCY,Phoenix Ward (HPC),HCL NURSING,HNSI0000972,3032.93
Department of Health,Leicestershire Partnership NHS Trust,11/03/22,NURSE - BAND 5 - AGENCY,Phoenix Ward (HPC),HCL NURSING,HNSI0000972,4994.15
Department of Health,Leicestershire Partnership NHS Trust,11/03/22,NURSE - BAND 5 - AGENCY,Place Of Safety Assessment Unit,HCL NURSING,HNSI0000972,7021.30
Department of Health,Leicestershire Partnership NHS Trust,11/03/22,NURSE - BAND 2 - AGENCY,Stewart House,HCL NURSING,HNSI0000972,1943.51
Department of Health,Leicestershire Partnership NHS Trust,11/03/22,NURSE - BAND 5 - AGENCY,Stewart House,HCL NURSING,HNSI0000972,8155.54
Department of Health,Leicestershire Partnership NHS Trust,11/03/22,NURSE - BAND 2 - AGENCY,Sycamore (Willows),HCL NURSING,HNSI0000972,789.57
Department of Health,Leicestershire Partnership NHS Trust,11/03/22,NURSE - BAND 5 - AGENCY,Sycamore (Willows),HCL NURSING,HNSI0000972,3418.52
Department of Health,Leicestershire Partnership NHS Trust,11/03/22,NURSE - BAND 2 - AGENCY,Thornton Ward - Bradgate Unit,HCL NURSING,HNSI0000972,3538.66
Department of Health,Leicestershire Partnership NHS Trust,11/03/22,NURSE - BAND 2 - AGENCY,Watermead Ward (Bradgate Unit),HCL NURSING,HNSI0000972,4483.71
Department of Health,Leicestershire Partnership NHS Trust,11/03/22,NURSE - BAND 5 - AGENCY,Watermead Ward (Bradgate Unit),HCL NURSING,HNSI0000972,6533.95
Department of Health,Leicestershire Partnership NHS Trust,11/03/22,NURSE - BAND 2 - AGENCY,Welford Ward,HCL NURSING,HNSI0000972,2894.10
Department of Health,Leicestershire Partnership NHS Trust,11/03/22,NURSE - BAND 5 - AGENCY,Welford Ward,HCL NURSING,HNSI0000972,4452.10
Department of Health,Leicestershire Partnership NHS Trust,14/03/22,Crs_NHS_LT1y -Resus Inventory Supplied.,Balance Sheet Collection,SUPPLY CHAIN CO LTD,1122231674,31251.90
Department of Health,Leicestershire Partnership NHS Trust,14/03/22,WIP Project Not in BS - Buildings excl Dwellings,Work in Progress,TILBURY DOUGLAS CONSTRUCTION LTD,22030035,58133.93
Department of Health,Leicestershire Partnership NHS Trust,14/03/22,Computer Software,Director of HR & OD,DIVA CREATIVE LTD,2716,28536.00
Department of Health,Leicestershire Partnership NHS Trust,15/03/22,NURSE - BAND 2 - AGENCY,Beechwood Ward,HCL NURSING,HNSI0000973,8264.83
Department of Health,Leicestershire Partnership NHS Trust,15/03/22,NURSE - BAND 5 - AGENCY,Beechwood Ward,HCL NURSING,HNSI0000973,4785.14
Department of Health,Leicestershire Partnership NHS Trust,15/03/22,NURSE - BAND 3 - AGENCY,CHS Phlebotomy Service,HCL NURSING,HNSI0000973,174.27
Department of Health,Leicestershire Partnership NHS Trust,15/03/22,NURSE - BAND 5 - AGENCY,City Planned Care - East,HCL NURSING,HNSI0000973,12163.30
Department of Health,Leicestershire Partnership NHS Trust,15/03/22,NURSE - BAND 5 - AGENCY,City Planned Care - West,HCL NURSING,HNSI0000973,9604.31
Department of Health,Leicestershire Partnership NHS Trust,15/03/22,NURSE - BAND 2 - AGENCY,Clarendon Ward,HCL NURSING,HNSI0000973,4297.12
Department of Health,Leicestershire Partnership NHS Trust,15/03/22,NURSE - BAND 5 - AGENCY,Clarendon Ward,HCL NURSING,HNSI0000973,6339.11
Department of Health,Leicestershire Partnership NHS Trust,15/03/22,NURSE - BAND 2 - AGENCY,Coalville Snibston Ward,HCL NURSING,HNSI0000973,1789.21
Department of Health,Leicestershire Partnership NHS Trust,15/03/22,NURSE - BAND 5 - AGENCY,Coalville Snibston Ward,HCL NURSING,HNSI0000973,3287.63
Department of Health,Leicestershire Partnership NHS Trust,15/03/22,NURSE - BAND 2 - AGENCY,Coalville Ward 2,HCL NURSING,HNSI0000973,3098.45
Department of Health,Leicestershire Partnership NHS Trust,15/03/22,NURSE - BAND 5 - AGENCY,Coalville Ward 2,HCL NURSING,HNSI0000973,4314.29
Department of Health,Leicestershire Partnership NHS Trust,15/03/22,NURSE - BAND 2 - AGENCY,Dalgliesh Ward,HCL NURSING,HNSI0000973,1468.31
Department of Health,Leicestershire Partnership NHS Trust,15/03/22,NURSE - BAND 5 - AGENCY,Dalgliesh Ward,HCL NURSING,HNSI0000973,1601.55
Department of Health,Leicestershire Partnership NHS Trust,15/03/22,NURSE - BAND 5 - AGENCY,"East Planned Care - Oadby,Wigston & Harborough",HCL NURSING,HNSI0000973,906.06
Department of Health,Leicestershire Partnership NHS Trust,15/03/22,NURSE - BAND 2 - AGENCY,H&B Comm Hosp East Ward,HCL NURSING,HNSI0000973,1601.66
Department of Health,Leicestershire Partnership NHS Trust,15/03/22,NURSE - BAND 5 - AGENCY,H&B Comm Hosp East Ward,HCL NURSING,HNSI0000973,7198.31
Department of Health,Leicestershire Partnership NHS Trust,15/03/22,NURSE - BAND 2 - AGENCY,H&B Comm Hosp North Ward,HCL NURSING,HNSI0000973,4988.51
Department of Health,Leicestershire Partnership NHS Trust,15/03/22,NURSE - BAND 5 - AGENCY,H&B Comm Hosp North Ward,HCL NURSING,HNSI0000973,4334.28
Department of Health,Leicestershire Partnership NHS Trust,15/03/22,NURSE - BAND 2 - AGENCY,Lough Swithland Ward,HCL NURSING,HNSI0000973,660.37
Department of Health,Leicestershire Partnership NHS Trust,15/03/22,NURSE - BAND 5 - AGENCY,Lough Swithland Ward,HCL NURSING,HNSI0000973,2126.90
Department of Health,Leicestershire Partnership NHS Trust,15/03/22,NURSE - BAND 2 - AGENCY,Rutland Ward Nursing,HCL NURSING,HNSI0000973,5570.38
Department of Health,Leicestershire Partnership NHS Trust,15/03/22,NURSE - BAND 5 - AGENCY,Rutland Ward Nursing,HCL NURSING,HNSI0000973,3787.26
Department of Health,Leicestershire Partnership NHS Trust,15/03/22,NURSE - BAND 2 - AGENCY,St Lukes Stroke Ward,HCL NURSING,HNSI0000973,174.72
Department of Health,Leicestershire Partnership NHS Trust,15/03/22,NURSE - BAND 5 - AGENCY,St Lukes Stroke Ward,HCL NURSING,HNSI0000973,819.94
Department of Health,Leicestershire Partnership NHS Trust,15/03/22,NURSE - BAND 2 - AGENCY,St Lukes Ward 3,HCL NURSING,HNSI0000973,1612.90
Department of Health,Leicestershire Partnership NHS Trust,15/03/22,NURSE - BAND 5 - AGENCY,St Lukes Ward 3,HCL NURSING,HNSI0000973,1231.27
Department of Health,Leicestershire Partnership NHS Trust,15/03/22,NURSE - BAND 2 - AGENCY,Wakerley Ward,HCL NURSING,HNSI0000973,6697.42
Department of Health,Leicestershire Partnership NHS Trust,15/03/22,NURSE - BAND 5 - AGENCY,Wakerley Ward,HCL NURSING,HNSI0000973,3966.43
Department of Health,Leicestershire Partnership NHS Trust,15/03/22,Landline Telephone Rental / Calls,"Beaumont Leys Health Centre (P94, LPT)",VIRGIN MEDIA BUSINESS,853083001/004/0322,353.33
Department of Health,Leicestershire Partnership NHS Trust,15/03/22,Landline Telephone Rental / Calls,"Bennion Centre (including Forest Grange Day Unit) (P8, LPT)",VIRGIN MEDIA BUSINESS,853083001/004/0322,7.74
Department of Health,Leicestershire Partnership NHS Trust,15/03/22,Landline Telephone Rental / Calls,"Bradgate Unit (including Glenvale day Unit) (P7, LPT)",VIRGIN MEDIA BUSINESS,853083001/004/0322,7961.75
Department of Health,Leicestershire Partnership NHS Trust,15/03/22,Landline Telephone Rental / Calls,Braunstone Health and Social Care Centre (Part) (PROPCO),VIRGIN MEDIA BUSINESS,853083001/004/0322,1085.80
Department of Health,Leicestershire Partnership NHS Trust,15/03/22,Landline Telephone Rental / Calls,Bridge Park Plaza - First Floor (LPT),VIRGIN MEDIA BUSINESS,853083001/004/0322,3743.32
Department of Health,Leicestershire Partnership NHS Trust,15/03/22,Landline Telephone Rental / Calls,"Coalville Community Hospital (P138, LPT)",VIRGIN MEDIA BUSINESS,853083001/004/0322,1486.74
Department of Health,Leicestershire Partnership NHS Trust,15/03/22,Landline Telephone Rental / Calls,"Coalville Health Centre (P121, LPT)",VIRGIN MEDIA BUSINESS,853083001/004/0322,144.89
Department of Health,Leicestershire Partnership NHS Trust,15/03/22,Landline Telephone Rental / Calls,County Hall,VIRGIN MEDIA BUSINESS,853083001/004/0322,2257.90
Department of Health,Leicestershire Partnership NHS Trust,15/03/22,Landline Telephone Rental / Calls,Estates & Facilities Central,VIRGIN MEDIA BUSINESS,853083001/004/0322,7.30
Department of Health,Leicestershire Partnership NHS Trust,15/03/22,Landline Telephone Rental / Calls,"Evington Centre (P6, LPT)",VIRGIN MEDIA BUSINESS,853083001/004/0322,1641.80
Department of Health,Leicestershire Partnership NHS Trust,15/03/22,Landline Telephone Rental / Calls,HIS,VIRGIN MEDIA BUSINESS,853083001/004/0322,2890.18
Department of Health,Leicestershire Partnership NHS Trust,15/03/22,Landline Telephone Rental / Calls,"Hawthorne Centre - Coalville (P14, LPT)",VIRGIN MEDIA BUSINESS,853083001/004/0322,473.51
Department of Health,Leicestershire Partnership NHS Trust,15/03/22,Landline Telephone Rental / Calls,"Hinckley and Bosworth Community Hospital (Sunnyside) (P133, LPT)",VIRGIN MEDIA BUSINESS,853083001/004/0322,970.69
Department of Health,Leicestershire Partnership NHS Trust,15/03/22,Landline Telephone Rental / Calls,Hood Park Leisure Centre Clinic,VIRGIN MEDIA BUSINESS,853083001/004/0322,23.51
Department of Health,Leicestershire Partnership NHS Trust,15/03/22,Landline Telephone Rental / Calls,"Hynca Lodge (P33, LPT)",VIRGIN MEDIA BUSINESS,853083001/004/0322,361.78
Department of Health,Leicestershire Partnership NHS Trust,15/03/22,Landline Telephone Rental / Calls,"Legion House, Ashby",VIRGIN MEDIA BUSINESS,853083001/004/0322,48.41
Department of Health,Leicestershire Partnership NHS Trust,15/03/22,Landline Telephone Rental / Calls,"Loughborough Hospital (P136, LPT)",VIRGIN MEDIA BUSINESS,853083001/004/0322,4530.44
Department of Health,Leicestershire Partnership NHS Trust,15/03/22,Landline Telephone Rental / Calls,Mawson House (LPT),VIRGIN MEDIA BUSINESS,853083001/004/0322,444.98
Department of Health,Leicestershire Partnership NHS Trust,15/03/22,Landline Telephone Rental / Calls,Merlyn Vaz Centre (CHP),VIRGIN MEDIA BUSINESS,853083001/004/0322,1325.60
Department of Health,Leicestershire Partnership NHS Trust,15/03/22,Landline Telephone Rental / Calls,"Mett Centre (P49, LPT)",VIRGIN MEDIA BUSINESS,853083001/004/0322,78.05
Department of Health,Leicestershire Partnership NHS Trust,15/03/22,Landline Telephone Rental / Calls,NSPCC Training Cente,VIRGIN MEDIA BUSINESS,853083001/004/0322,159.96
Department of Health,Leicestershire Partnership NHS Trust,15/03/22,Landline Telephone Rental / Calls,New Parks Health Centre (PROPCO),VIRGIN MEDIA BUSINESS,853083001/004/0322,1477.39
Department of Health,Leicestershire Partnership NHS Trust,15/03/22,Landline Telephone Rental / Calls,"OSL House (P54, LPT)",VIRGIN MEDIA BUSINESS,853083001/004/0322,961.47
Department of Health,Leicestershire Partnership NHS Trust,15/03/22,Landline Telephone Rental / Calls,"Orchard Resource Centre (P15, LPT)",VIRGIN MEDIA BUSINESS,853083001/004/0322,602.11
Department of Health,Leicestershire Partnership NHS Trust,15/03/22,Landline Telephone Rental / Calls,Pasley Road Health Centre (PROPCO),VIRGIN MEDIA BUSINESS,853083001/004/0322,105.26
Department of Health,Leicestershire Partnership NHS Trust,15/03/22,Landline Telephone Rental / Calls,"Prince Philip House (P96, LPT)",VIRGIN MEDIA BUSINESS,853083001/004/0322,1512.00
Department of Health,Leicestershire Partnership NHS Trust,15/03/22,Landline Telephone Rental / Calls,Rushey Mead Health Centre (PROPCO),VIRGIN MEDIA BUSINESS,853083001/004/0322,75.77
Department of Health,Leicestershire Partnership NHS Trust,15/03/22,Landline Telephone Rental / Calls,"Shepshed Health Centre (P123, LPT)",VIRGIN MEDIA BUSINESS,853083001/004/0322,9.42
Department of Health,Leicestershire Partnership NHS Trust,15/03/22,Landline Telephone Rental / Calls,"Springfield Road Health Centre (P92, LPT)",VIRGIN MEDIA BUSINESS,853083001/004/0322,323.60
Department of Health,Leicestershire Partnership NHS Trust,15/03/22,Landline Telephone Rental / Calls,"St Peters Health Center (Part 1st and 2nd floors) (P66, LPT)",VIRGIN MEDIA BUSINESS,853083001/004/0322,1957.84
Department of Health,Leicestershire Partnership NHS Trust,15/03/22,Landline Telephone Rental / Calls,"Swithland House - London Road 352 (P44, LPT)",VIRGIN MEDIA BUSINESS,853083001/004/0322,240.61
Department of Health,Leicestershire Partnership NHS Trust,15/03/22,Landline Telephone Rental / Calls,"The Cedars (P19, LPT)",VIRGIN MEDIA BUSINESS,853083001/004/0322,743.78
Department of Health,Leicestershire Partnership NHS Trust,15/03/22,Landline Telephone Rental / Calls,"The Willows - Cordelia Close (P22, LPT)",VIRGIN MEDIA BUSINESS,853083001/004/0322,528.86
Department of Health,Leicestershire Partnership NHS Trust,15/03/22,Landline Telephone Rental / Calls,"Valentine Centre (P3, LPT)",VIRGIN MEDIA BUSINESS,853083001/004/0322,1778.44
Department of Health,Leicestershire Partnership NHS Trust,15/03/22,Landline Telephone Rental / Calls,Warren Park Way 25 (PROPCO),VIRGIN MEDIA BUSINESS,853083001/004/0322,709.39
Department of Health,Leicestershire Partnership NHS Trust,15/03/22,Landline Telephone Rental / Calls,"Westcotes Group -Westcotes House (P78, LPT)",VIRGIN MEDIA BUSINESS,853083001/004/0322,1359.65
Department of Health,Leicestershire Partnership NHS Trust,15/03/22,Landline Telephone Rental / Calls,"Winstanley Drive Health Centre (P8, LPT)",VIRGIN MEDIA BUSINESS,853083001/004/0322,437.20
Department of Health,Leicestershire Partnership NHS Trust,15/03/22,UHL Facilities Management SLA,Estates Central Invoices To Recharge,UHL NHS TRUST (RWE),L0258365,940375.84
Department of Health,Leicestershire Partnership NHS Trust,15/03/22,Electricity,"Belvoir Intensive Care Unit (P7, LPT)",UHL NHS TRUST (RWE),L0258364,1651.86
Department of Health,Leicestershire Partnership NHS Trust,15/03/22,Electricity,"Bennion Centre (including Forest Grange Day Unit) (P8, LPT)",UHL NHS TRUST (RWE),L0258364,5815.71
Department of Health,Leicestershire Partnership NHS Trust,15/03/22,Electricity,"Bradgate Unit (including Glenvale day Unit) (P7, LPT)",UHL NHS TRUST (RWE),L0258364,15998.22
Department of Health,Leicestershire Partnership NHS Trust,15/03/22,Contract : Premises Security,Estates & Facilities Central,UHL NHS TRUST (RWE),L0258364,2295.52
Department of Health,Leicestershire Partnership NHS Trust,15/03/22,Electricity,"Herschel Prins (P9, LPT)",UHL NHS TRUST (RWE),L0258364,4206.64
Department of Health,Leicestershire Partnership NHS Trust,15/03/22,Electricity,Modular Training Building,UHL NHS TRUST (RWE),L0258364,783.95
Department of Health,Leicestershire Partnership NHS Trust,15/03/22,Electricity,Pharmacy Portacabin,UHL NHS TRUST (RWE),L0258364,1211.02
Department of Health,Leicestershire Partnership NHS Trust,15/03/22,Services / Recharges from NHS Trusts,UHL Expenditure Contract,UHL NHS TRUST (RWE),L0258364,5552.23
Department of Health,Leicestershire Partnership NHS Trust,15/03/22,Med Trainees - FY1,Medical Trainees,UHL NHS TRUST (RWE),L0258363,29064.36
Department of Health,Leicestershire Partnership NHS Trust,16/03/22,NURSE - BAND 6,LD - ASD,LEIC CITY COUNCIL,89057430,70000.00
Department of Health,Leicestershire Partnership NHS Trust,16/03/22,NURSE - BAND 6,LD County Nursing,LEIC CITY COUNCIL,89057430,180000.00
Department of Health,Leicestershire Partnership NHS Trust,16/03/22,Medical Equipment Repairs / Maintenance,Medical Devices Maintenance (LPT),SUPPLY CHAIN CO LTD,2122008398,31391.16
Department of Health,Leicestershire Partnership NHS Trust,16/03/22,Healthcare Services / Recharges from Non-NHS Bodies,Adult Eating Disorder Collaborative,RIVERDALE GRANGE LIMITED,856,29534.40
Department of Health,Leicestershire Partnership NHS Trust,16/03/22,Gas,"Beaumont Leys Health Centre (P94, LPT)",TOTAL GAS & POWER LTD,261967788/22,680.62
Department of Health,Leicestershire Partnership NHS Trust,16/03/22,Gas,"Bradgate Unit (including Glenvale day Unit) (P7, LPT)",TOTAL GAS & POWER LTD,261967788/22,22642.10
Department of Health,Leicestershire Partnership NHS Trust,16/03/22,Gas,Bridge Park Plaza - First Floor (LPT),TOTAL GAS & POWER LTD,261967788/22,1472.23
Department of Health,Leicestershire Partnership NHS Trust,16/03/22,Gas,"Bridge Park Road - Units 2 and 3 (P148, LPT)",TOTAL GAS & POWER LTD,261967788/22,309.77
Department of Health,Leicestershire Partnership NHS Trust,16/03/22,Gas,"Coalville Community Hospital (P138, LPT)",TOTAL GAS & POWER LTD,261967788/22,6958.39
Department of Health,Leicestershire Partnership NHS Trust,16/03/22,Gas,"Coalville Health Centre (P121, LPT)",TOTAL GAS & POWER LTD,261967788/22,584.83
Department of Health,Leicestershire Partnership NHS Trust,16/03/22,Gas,"Evington Centre (P6, LPT)",TOTAL GAS & POWER LTD,261967788/22,1142.66
Department of Health,Leicestershire Partnership NHS Trust,16/03/22,Gas,"Farm Lodge (P34, LPT)",TOTAL GAS & POWER LTD,261967788/22,185.11
Department of Health,Leicestershire Partnership NHS Trust,16/03/22,Gas,"Feilding Palmer Hospital (Lutterworth) (P131, LPT)",TOTAL GAS & POWER LTD,261967788/22,1248.17
Department of Health,Leicestershire Partnership NHS Trust,16/03/22,Gas,"Frith Cottages 3 & 4 (P36, LPT)",TOTAL GAS & POWER LTD,261967788/22,179.06
Department of Health,Leicestershire Partnership NHS Trust,16/03/22,Gas,HIS,TOTAL GAS & POWER LTD,261967788/22,220.28
Department of Health,Leicestershire Partnership NHS Trust,16/03/22,Gas,"Hawthorne Centre - Coalville (P14, LPT)",TOTAL GAS & POWER LTD,261967788/22,418.88
Department of Health,Leicestershire Partnership NHS Trust,16/03/22,Gas,"Hinckley and Bosworth Community Hospital (Sunnyside) (P133, LPT)",TOTAL GAS & POWER LTD,261967788/22,4959.83
Department of Health,Leicestershire Partnership NHS Trust,16/03/22,Gas,"Hynca Lodge (P33, LPT)",TOTAL GAS & POWER LTD,261967788/22,388.02
Department of Health,Leicestershire Partnership NHS Trust,16/03/22,Gas,"LGH - Gwendolen House (P4, LPT)",TOTAL GAS & POWER LTD,261967788/22,1730.11
Department of Health,Leicestershire Partnership NHS Trust,16/03/22,Gas,"Loughborough Hospital (P136, LPT)",TOTAL GAS & POWER LTD,261967788/22,12893.69
Department of Health,Leicestershire Partnership NHS Trust,16/03/22,Gas,Mawson House (LPT),TOTAL GAS & POWER LTD,261967788/22,666.56
Department of Health,Leicestershire Partnership NHS Trust,16/03/22,Gas,"Mett Centre (P49, LPT)",TOTAL GAS & POWER LTD,261967788/22,269.99
Department of Health,Leicestershire Partnership NHS Trust,16/03/22,Gas,"Narborough Health Centre (P117, LPT)",TOTAL GAS & POWER LTD,261967788/22,475.52
Department of Health,Leicestershire Partnership NHS Trust,16/03/22,Gas,"Neville Centre - LGH (was DSC) (P147, LPT)",TOTAL GAS & POWER LTD,261967788/22,752.76
Department of Health,Leicestershire Partnership NHS Trust,16/03/22,Gas,"OSL House (P54, LPT)",TOTAL GAS & POWER LTD,261967788/22,673.13
Department of Health,Leicestershire Partnership NHS Trust,16/03/22,Gas,"Orchard Resource Centre (P15, LPT)",TOTAL GAS & POWER LTD,261967788/22,577.84
Department of Health,Leicestershire Partnership NHS Trust,16/03/22,Gas,"Rutland Memorial Hospital (P134, LPT)",TOTAL GAS & POWER LTD,261967788/22,2195.50
Department of Health,Leicestershire Partnership NHS Trust,16/03/22,Gas,"Shepshed Health Centre (P123, LPT)",TOTAL GAS & POWER LTD,261967788/22,560.00
Department of Health,Leicestershire Partnership NHS Trust,16/03/22,Gas,"Springfield Road Health Centre (P92, LPT)",TOTAL GAS & POWER LTD,261967788/22,578.46
Department of Health,Leicestershire Partnership NHS Trust,16/03/22,Gas,"Stewart House (P61, LPT)",TOTAL GAS & POWER LTD,261967788/22,2547.68
Department of Health,Leicestershire Partnership NHS Trust,16/03/22,Gas,"Swithland House - London Road 352 (P44, LPT)",TOTAL GAS & POWER LTD,261967788/22,828.62
Department of Health,Leicestershire Partnership NHS Trust,16/03/22,Gas,"The Agnes Unit (AKA Assessment and Treatment Centre) (P85, LPT)",TOTAL GAS & POWER LTD,261967788/22,2633.44
Department of Health,Leicestershire Partnership NHS Trust,16/03/22,Gas,The Beacon,TOTAL GAS & POWER LTD,261967788/22,1624.74
Department of Health,Leicestershire Partnership NHS Trust,16/03/22,Gas,"The Cedars (P19, LPT)",TOTAL GAS & POWER LTD,261967788/22,314.10
Department of Health,Leicestershire Partnership NHS Trust,16/03/22,Gas,"The Grange 1 (P4, LPT)",TOTAL GAS & POWER LTD,261967788/22,269.88
Department of Health,Leicestershire Partnership NHS Trust,16/03/22,Gas,"The Grange 2 (P41, LPT)",TOTAL GAS & POWER LTD,261967788/22,217.79
Department of Health,Leicestershire Partnership NHS Trust,16/03/22,Gas,"The Willows - Cordelia Close (P22, LPT)",TOTAL GAS & POWER LTD,261967788/22,2737.15
Department of Health,Leicestershire Partnership NHS Trust,16/03/22,Gas,"Valentine Centre (P3, LPT)",TOTAL GAS & POWER LTD,261967788/22,1597.49
Department of Health,Leicestershire Partnership NHS Trust,16/03/22,Gas,"Westcotes Group -Westcotes House (P78, LPT)",TOTAL GAS & POWER LTD,261967788/22,1034.52
Department of Health,Leicestershire Partnership NHS Trust,16/03/22,Gas,"Winstanley Drive Health Centre (P8, LPT)",TOTAL GAS & POWER LTD,261967788/22,470.60
Department of Health,Leicestershire Partnership NHS Trust,18/03/22,WIP Project Not in BS - Information Technology,Work in Progress,HUMBER  NHSFT  (RV9),59890975,585000.00
Department of Health,Leicestershire Partnership NHS Trust,18/03/22,NURSE - BAND 2 - AGENCY,Beechwood Ward,HCL NURSING,HNSI0000979,6957.31
Department of Health,Leicestershire Partnership NHS Trust,18/03/22,NURSE - BAND 5 - AGENCY,Beechwood Ward,HCL NURSING,HNSI0000979,3765.13
Department of Health,Leicestershire Partnership NHS Trust,18/03/22,NURSE - BAND 3 - AGENCY,CHS Phlebotomy Service,HCL NURSING,HNSI0000979,371.43
Department of Health,Leicestershire Partnership NHS Trust,18/03/22,NURSE - BAND 5 - AGENCY,City Planned Care - East,HCL NURSING,HNSI0000979,12439.09
Department of Health,Leicestershire Partnership NHS Trust,18/03/22,NURSE - BAND 5 - AGENCY,City Planned Care - West,HCL NURSING,HNSI0000979,14873.11
Department of Health,Leicestershire Partnership NHS Trust,18/03/22,NURSE - BAND 2 - AGENCY,Clarendon Ward,HCL NURSING,HNSI0000979,4786.78
Department of Health,Leicestershire Partnership NHS Trust,18/03/22,NURSE - BAND 5 - AGENCY,Clarendon Ward,HCL NURSING,HNSI0000979,4902.84
Department of Health,Leicestershire Partnership NHS Trust,18/03/22,NURSE - BAND 2 - AGENCY,Coalville Snibston Ward,HCL NURSING,HNSI0000979,2433.28
Department of Health,Leicestershire Partnership NHS Trust,18/03/22,NURSE - BAND 5 - AGENCY,Coalville Snibston Ward,HCL NURSING,HNSI0000979,2999.74
Department of Health,Leicestershire Partnership NHS Trust,18/03/22,NURSE - BAND 2 - AGENCY,Coalville Ward 2,HCL NURSING,HNSI0000979,2856.84
Department of Health,Leicestershire Partnership NHS Trust,18/03/22,NURSE - BAND 5 - AGENCY,Coalville Ward 2,HCL NURSING,HNSI0000979,3117.31
Department of Health,Leicestershire Partnership NHS Trust,18/03/22,NURSE - BAND 2 - AGENCY,Dalgliesh Ward,HCL NURSING,HNSI0000979,1367.00
Department of Health,Leicestershire Partnership NHS Trust,18/03/22,NURSE - BAND 5 - AGENCY,"East Planned Care - Oadby,Wigston & Harborough",HCL NURSING,HNSI0000979,740.88
Department of Health,Leicestershire Partnership NHS Trust,18/03/22,NURSE - BAND 2 - AGENCY,H&B Comm Hosp East Ward,HCL NURSING,HNSI0000979,1710.21
Department of Health,Leicestershire Partnership NHS Trust,18/03/22,NURSE - BAND 5 - AGENCY,H&B Comm Hosp East Ward,HCL NURSING,HNSI0000979,6138.98
Department of Health,Leicestershire Partnership NHS Trust,18/03/22,NURSE - BAND 2 - AGENCY,H&B Comm Hosp North Ward,HCL NURSING,HNSI0000979,6146.34
Department of Health,Leicestershire Partnership NHS Trust,18/03/22,NURSE - BAND 5 - AGENCY,H&B Comm Hosp North Ward,HCL NURSING,HNSI0000979,3673.89
Department of Health,Leicestershire Partnership NHS Trust,18/03/22,NURSE - BAND 2 - AGENCY,Lough Swithland Ward,HCL NURSING,HNSI0000979,1463.08
Department of Health,Leicestershire Partnership NHS Trust,18/03/22,NURSE - BAND 5 - AGENCY,Lough Swithland Ward,HCL NURSING,HNSI0000979,1348.62
Department of Health,Leicestershire Partnership NHS Trust,18/03/22,NURSE - BAND 2 - AGENCY,Rutland Ward Nursing,HCL NURSING,HNSI0000979,3984.38
Department of Health,Leicestershire Partnership NHS Trust,18/03/22,NURSE - BAND 5 - AGENCY,Rutland Ward Nursing,HCL NURSING,HNSI0000979,925.69
Department of Health,Leicestershire Partnership NHS Trust,18/03/22,NURSE - BAND 2 - AGENCY,St Lukes Stroke Ward,HCL NURSING,HNSI0000979,1321.44
Department of Health,Leicestershire Partnership NHS Trust,18/03/22,NURSE - BAND 5 - AGENCY,St Lukes Stroke Ward,HCL NURSING,HNSI0000979,393.34
Department of Health,Leicestershire Partnership NHS Trust,18/03/22,NURSE - BAND 2 - AGENCY,St Lukes Ward 3,HCL NURSING,HNSI0000979,2672.52
Department of Health,Leicestershire Partnership NHS Trust,18/03/22,NURSE - BAND 5 - AGENCY,St Lukes Ward 3,HCL NURSING,HNSI0000979,154.13
Department of Health,Leicestershire Partnership NHS Trust,18/03/22,NURSE - BAND 2 - AGENCY,Wakerley Ward,HCL NURSING,HNSI0000979,5250.61
Department of Health,Leicestershire Partnership NHS Trust,18/03/22,NURSE - BAND 5 - AGENCY,Wakerley Ward,HCL NURSING,HNSI0000979,3919.74
Department of Health,Leicestershire Partnership NHS Trust,18/03/22,NURSE - BAND 5 - AGENCY,West Planned Care  - Hinckley Hub,HCL NURSING,HNSI0000979,276.68
Department of Health,Leicestershire Partnership NHS Trust,18/03/22,Network Costs - WAN Maint,HIS Infrastructure,VIRGIN MEDIA BUSINESS,919266-139,26042.08
Department of Health,Leicestershire Partnership NHS Trust,18/03/22,Photocopying,Estates & Facilities Central,LEXMARK INTERNATIONAL LTD,900650302802,34164.71
Department of Health,Leicestershire Partnership NHS Trust,18/03/22,Nurse - Band 6 -Agency,AMH - Central Access Point,HCL NURSING,HNSI0000978,1411.75
Department of Health,Leicestershire Partnership NHS Trust,18/03/22,Nurse - Band 6 -Agency,Adult County Charnwood CMHT - Loughborough Base,HCL NURSING,HNSI0000978,1348.16
Department of Health,Leicestershire Partnership NHS Trust,18/03/22,Nurse - Band 6 -Agency,Adult County West Leicestershire CMHT,HCL NURSING,HNSI0000978,1069.97
Department of Health,Leicestershire Partnership NHS Trust,18/03/22,NURSE - BAND 2 - AGENCY,Agnes Unit Management,HCL NURSING,HNSI0000978,25430.62
Department of Health,Leicestershire Partnership NHS Trust,18/03/22,NURSE - BAND 5 - AGENCY,Agnes Unit Management,HCL NURSING,HNSI0000978,17914.18
Department of Health,Leicestershire Partnership NHS Trust,18/03/22,NURSE - BAND 2 - AGENCY,Ashby Ward (Bradgate Unit),HCL NURSING,HNSI0000978,2915.11
Department of Health,Leicestershire Partnership NHS Trust,18/03/22,NURSE - BAND 5 - AGENCY,Ashby Ward (Bradgate Unit),HCL NURSING,HNSI0000978,6161.75
Department of Health,Leicestershire Partnership NHS Trust,18/03/22,NURSE - BAND 2 - AGENCY,Aston Ward (Bradgate Unit),HCL NURSING,HNSI0000978,5239.66
Department of Health,Leicestershire Partnership NHS Trust,18/03/22,NURSE - BAND 5 - AGENCY,Aston Ward (Bradgate Unit),HCL NURSING,HNSI0000978,12431.59
Department of Health,Leicestershire Partnership NHS Trust,18/03/22,NURSE - BAND 2 - AGENCY,Beaumont Ward - Bradgate Unit,HCL NURSING,HNSI0000978,7738.24
Department of Health,Leicestershire Partnership NHS Trust,18/03/22,NURSE - BAND 5 - AGENCY,Beaumont Ward - Bradgate Unit,HCL NURSING,HNSI0000978,4506.87
Department of Health,Leicestershire Partnership NHS Trust,18/03/22,NURSE - BAND 2 - AGENCY,Belvoir Psychiatric Intensive Care Unit,HCL NURSING,HNSI0000978,3245.22
Department of Health,Leicestershire Partnership NHS Trust,18/03/22,NURSE - BAND 5 - AGENCY,Belvoir Psychiatric Intensive Care Unit,HCL NURSING,HNSI0000978,5586.92
Department of Health,Leicestershire Partnership NHS Trust,18/03/22,NURSE - BAND 2 - AGENCY,Cedar (Willows),HCL NURSING,HNSI0000978,728.02
Department of Health,Leicestershire Partnership NHS Trust,18/03/22,Nurse - Band 6 -Agency,City West CMHT MHSOP,HCL NURSING,HNSI0000978,1046.25
Department of Health,Leicestershire Partnership NHS Trust,18/03/22,NURSE - BAND 2 - AGENCY,Coleman Ward,HCL NURSING,HNSI0000978,2816.65
Department of Health,Leicestershire Partnership NHS Trust,18/03/22,NURSE - BAND 5 - AGENCY,Coleman Ward,HCL NURSING,HNSI0000978,4738.99
Department of Health,Leicestershire Partnership NHS Trust,18/03/22,NURSE - BAND 5 - AGENCY,Crisis Resolution,HCL NURSING,HNSI0000978,2995.16
Department of Health,Leicestershire Partnership NHS Trust,18/03/22,Nurse - Band 6 -Agency,Crisis Resolution,HCL NURSING,HNSI0000978,1826.93
Department of Health,Leicestershire Partnership NHS Trust,18/03/22,NURSE - BAND 2 - AGENCY,Griffin Ward (HPC),HCL NURSING,HNSI0000978,9560.02
Department of Health,Leicestershire Partnership NHS Trust,18/03/22,NURSE - BAND 5 - AGENCY,Griffin Ward (HPC),HCL NURSING,HNSI0000978,3425.52
Department of Health,Leicestershire Partnership NHS Trust,18/03/22,NURSE - BAND 2 - AGENCY,Heather Ward,HCL NURSING,HNSI0000978,1549.31
Department of Health,Leicestershire Partnership NHS Trust,18/03/22,NURSE - BAND 5 - AGENCY,Heather Ward,HCL NURSING,HNSI0000978,1431.43
Department of Health,Leicestershire Partnership NHS Trust,18/03/22,NURSE - BAND 2 - AGENCY,Kirby Ward,HCL NURSING,HNSI0000978,5229.74
Department of Health,Leicestershire Partnership NHS Trust,18/03/22,NURSE - BAND 5 - AGENCY,Kirby Ward,HCL NURSING,HNSI0000978,3209.07
Department of Health,Leicestershire Partnership NHS Trust,18/03/22,NURSE - BAND 2 - AGENCY,Maple Ward,HCL NURSING,HNSI0000978,756.28
Department of Health,Leicestershire Partnership NHS Trust,18/03/22,NURSE - BAND 5 - AGENCY,Maple Ward,HCL NURSING,HNSI0000978,2748.04
Department of Health,Leicestershire Partnership NHS Trust,18/03/22,Nurse - Band 6 -Agency,Mental Health Liaison Team,HCL NURSING,HNSI0000978,1666.08
Department of Health,Leicestershire Partnership NHS Trust,18/03/22,NURSE - BAND 2 - AGENCY,Mill Lodge,HCL NURSING,HNSI0000978,877.07
Department of Health,Leicestershire Partnership NHS Trust,18/03/22,NURSE - BAND 5 - AGENCY,Mill Lodge,HCL NURSING,HNSI0000978,12752.90
Department of Health,Leicestershire Partnership NHS Trust,18/03/22,NURSE - BAND 2 - AGENCY,Phoenix Ward (HPC),HCL NURSING,HNSI0000978,4363.31
Department of Health,Leicestershire Partnership NHS Trust,18/03/22,NURSE - BAND 5 - AGENCY,Place Of Safety Assessment Unit,HCL NURSING,HNSI0000978,4801.24
Department of Health,Leicestershire Partnership NHS Trust,18/03/22,NURSE - BAND 2 - AGENCY,Stewart House,HCL NURSING,HNSI0000978,1209.02
Department of Health,Leicestershire Partnership NHS Trust,18/03/22,NURSE - BAND 5 - AGENCY,Stewart House,HCL NURSING,HNSI0000978,8416.69
Department of Health,Leicestershire Partnership NHS Trust,18/03/22,NURSE - BAND 2 - AGENCY,Sycamore (Willows),HCL NURSING,HNSI0000978,808.46
Department of Health,Leicestershire Partnership NHS Trust,18/03/22,NURSE - BAND 5 - AGENCY,Sycamore (Willows),HCL NURSING,HNSI0000978,3323.39
Department of Health,Leicestershire Partnership NHS Trust,18/03/22,NURSE - BAND 2 - AGENCY,Thornton Ward - Bradgate Unit,HCL NURSING,HNSI0000978,1997.85
Department of Health,Leicestershire Partnership NHS Trust,18/03/22,NURSE - BAND 5 - AGENCY,Thornton Ward - Bradgate Unit,HCL NURSING,HNSI0000978,449.54
Department of Health,Leicestershire Partnership NHS Trust,18/03/22,NURSE - BAND 2 - AGENCY,Watermead Ward (Bradgate Unit),HCL NURSING,HNSI0000978,6589.85
Department of Health,Leicestershire Partnership NHS Trust,18/03/22,NURSE - BAND 5 - AGENCY,Watermead Ward (Bradgate Unit),HCL NURSING,HNSI0000978,8494.17
Department of Health,Leicestershire Partnership NHS Trust,18/03/22,NURSE - BAND 2 - AGENCY,Welford Ward,HCL NURSING,HNSI0000978,726.50
Department of Health,Leicestershire Partnership NHS Trust,18/03/22,NURSE - BAND 5 - AGENCY,Welford Ward,HCL NURSING,HNSI0000978,3322.55
Department of Health,Leicestershire Partnership NHS Trust,18/03/22,Nurse - Band 6 -Agency,CAMHS HUB / CAP,HCL SOCIAL CARE,HWSI0001085,8789.77
Department of Health,Leicestershire Partnership NHS Trust,18/03/22,Nurse - Band 6 -Agency,CAMHS Waiting List Monies,HCL SOCIAL CARE,HWSI0001085,24826.51
Department of Health,Leicestershire Partnership NHS Trust,18/03/22,NURSE - BAND 2 - AGENCY,CAMHS ED Team,HCL NURSING,HNSI0000980,7265.24
Department of Health,Leicestershire Partnership NHS Trust,18/03/22,NURSE - BAND 3 - AGENCY,CAMHS ED Team,HCL NURSING,HNSI0000980,178.08
Department of Health,Leicestershire Partnership NHS Trust,18/03/22,NURSE - BAND 2 - AGENCY,CAMHS Inpatient Service,HCL NURSING,HNSI0000980,13818.93
Department of Health,Leicestershire Partnership NHS Trust,18/03/22,NURSE - BAND 5 - AGENCY,CAMHS Inpatient Service,HCL NURSING,HNSI0000980,1904.85
Department of Health,Leicestershire Partnership NHS Trust,18/03/22,Nurse - Band 6 -Agency,CAMHS Inpatient Service,HCL NURSING,HNSI0000980,370.26
Department of Health,Leicestershire Partnership NHS Trust,18/03/22,Nurse - Band 6 -Agency,CAMHS Waiting List Monies,HCL NURSING,HNSI0000980,6888.41
Department of Health,Leicestershire Partnership NHS Trust,18/03/22,NURSE - BAND 2 - AGENCY,Langley Ward ED Inpatient Service,HCL NURSING,HNSI0000980,2158.14
Department of Health,Leicestershire Partnership NHS Trust,18/03/22,NURSE - BAND 5 - AGENCY,Langley Ward ED Inpatient Service,HCL NURSING,HNSI0000980,6942.55
Department of Health,Leicestershire Partnership NHS Trust,18/03/22,FP10'S,Adult City Drugs,NHS BUS SERVICES AUTHORITY,1000072542,19315.15
Department of Health,Leicestershire Partnership NHS Trust,18/03/22,FP10'S,Adult County Drugs,NHS BUS SERVICES AUTHORITY,1000072542,20462.45
Department of Health,Leicestershire Partnership NHS Trust,18/03/22,FP10'S,CAMHS Outpatients,NHS BUS SERVICES AUTHORITY,1000072542,7106.67
Department of Health,Leicestershire Partnership NHS Trust,18/03/22,FP10'S,Community Paediatrics,NHS BUS SERVICES AUTHORITY,1000072542,8826.91
Department of Health,Leicestershire Partnership NHS Trust,18/03/22,FP10'S,Dementia Related Drugs and Investigations,NHS BUS SERVICES AUTHORITY,1000072542,6063.12
Department of Health,Leicestershire Partnership NHS Trust,18/03/22,FP10'S,Eating Disorders Outpatient Service,NHS BUS SERVICES AUTHORITY,1000072542,1204.64
Department of Health,Leicestershire Partnership NHS Trust,18/03/22,FP10'S,Forensic Services - Community,NHS BUS SERVICES AUTHORITY,1000072542,135.33
Department of Health,Leicestershire Partnership NHS Trust,18/03/22,FP10'S,LOROS Pharmacy,NHS BUS SERVICES AUTHORITY,1000072542,781.08
Department of Health,Leicestershire Partnership NHS Trust,18/03/22,FP10'S,Liason Psychiatry Service,NHS BUS SERVICES AUTHORITY,1000072542,117.91
Department of Health,Leicestershire Partnership NHS Trust,18/03/22,FP10'S,Mental Health Liaison Team,NHS BUS SERVICES AUTHORITY,1000072542,1.09
Department of Health,Leicestershire Partnership NHS Trust,18/03/22,FP10'S,PIER Team - Early Intervention Services,NHS BUS SERVICES AUTHORITY,1000072542,12992.30
Department of Health,Leicestershire Partnership NHS Trust,18/03/22,FP10'S,Snr Med Staff (Inc Med Reps),NHS BUS SERVICES AUTHORITY,1000072542,6844.79
Department of Health,Leicestershire Partnership NHS Trust,18/03/22,Network Costs - WAN Maint,HIS Infrastructure,VIRGIN MEDIA BUSINESS,262421-191,36070.48
Department of Health,Leicestershire Partnership NHS Trust,18/03/22,Services / Recharges from NHS Trusts,Adult Eating Disorder Collaborative,ROTHERHAM DONC & S HUMBER NHS FT (RXE),0000092009,43754.40
Department of Health,Leicestershire Partnership NHS Trust,21/03/22,Services / Recharges from NHS Trusts,Inter Unit I & E Distribution,UHL NHS TRUST (RWE),L0258488,60000.04
Department of Health,Leicestershire Partnership NHS Trust,21/03/22,Services / Recharges from NHS Trusts,Inter Unit I & E Distribution,UHL NHS TRUST (RWE),L0258487,60000.04
Department of Health,Leicestershire Partnership NHS Trust,21/03/22,Crs_NHS_LT1y -Resus Inventory Supplied.,Balance Sheet Collection,SUPPLY CHAIN CO LTD,1122237295,31669.73
Department of Health,Leicestershire Partnership NHS Trust,21/03/22,Leased / Hired Vehicles,Assertive Outreach Services,AUTOMOTIVE LEASING LTD,509729095,10.00
Department of Health,Leicestershire Partnership NHS Trust,21/03/22,Leased / Hired Vehicles,Autism,AUTOMOTIVE LEASING LTD,509729095,638.96
Department of Health,Leicestershire Partnership NHS Trust,21/03/22,Prep_ LT1y -Prepayments Lease Cars,Balance Sheet Collection,AUTOMOTIVE LEASING LTD,509729095,17390.44
Department of Health,Leicestershire Partnership NHS Trust,21/03/22,Trade_Drs_LT1y -Lease Cars Invoicing Contrl Ac.,Balance Sheet Collection,AUTOMOTIVE LEASING LTD,509729095,865.42
Department of Health,Leicestershire Partnership NHS Trust,21/03/22,VAT_Drs _ LT1y -VAT Contracted Out Services Input Tax,Balance Sheet Collection,AUTOMOTIVE LEASING LTD,509729095,757.41
Department of Health,Leicestershire Partnership NHS Trust,21/03/22,Leased / Hired Vehicles,COVID 19,AUTOMOTIVE LEASING LTD,509729095,472.36
Department of Health,Leicestershire Partnership NHS Trust,21/03/22,Leased / Hired Vehicles,City Planned Care - East - Therapy,AUTOMOTIVE LEASING LTD,509729095,15.00
Department of Health,Leicestershire Partnership NHS Trust,21/03/22,Leased / Hired Vehicles,East Planned Care - Blaby/Lutterworth,AUTOMOTIVE LEASING LTD,509729095,10.00
Department of Health,Leicestershire Partnership NHS Trust,21/03/22,Leased / Hired Vehicles,PIER Team - Early Intervention Services,AUTOMOTIVE LEASING LTD,509729095,15.00
Department of Health,Leicestershire Partnership NHS Trust,21/03/22,Leased / Hired Vehicles,School Age Immunisation and Vaccinations,AUTOMOTIVE LEASING LTD,509729095,2835.45
Department of Health,Leicestershire Partnership NHS Trust,21/03/22,Leased / Hired Vehicles,St Lukes Ward 3,AUTOMOTIVE LEASING LTD,509729095,10.00
Department of Health,Leicestershire Partnership NHS Trust,21/03/22,Leased / Hired Vehicles,West Leicestershire CMHT MHSOP,AUTOMOTIVE LEASING LTD,509729095,5.00
Department of Health,Leicestershire Partnership NHS Trust,21/03/22,Leased / Hired Vehicles,West Planned Care  - Hinckley Hub,AUTOMOTIVE LEASING LTD,509729095,172.64
Department of Health,Leicestershire Partnership NHS Trust,21/03/22,WIP Project Not in BS - Information Technology,Work in Progress,NHS LEICESTER CITY CCG,7017001762,75000.00
Department of Health,Leicestershire Partnership NHS Trust,21/03/22,Occupational Health,HR Operations,UHL NHS TRUST (RWE),L0258544,40583.00
Department of Health,Leicestershire Partnership NHS Trust,22/03/22,Healthcare Services / Recharges from Non-NHS Bodies,Adult Eating Disorder Collaborative,ELLERN MEDE MOORGATE,OTM0184,33600.00
Department of Health,Leicestershire Partnership NHS Trust,22/03/22,Healthcare Services / Recharges from Non-NHS Bodies,Adult Eating Disorder Collaborative,ELLERN MEDE MOORGATE,OTM0174,37200.00
Department of Health,Leicestershire Partnership NHS Trust,22/03/22,NURSE - BAND 2 - AGENCY,Beechwood Ward,HCL NURSING,HNSI0000952,8706.00
Department of Health,Leicestershire Partnership NHS Trust,22/03/22,NURSE - BAND 5 - AGENCY,Beechwood Ward,HCL NURSING,HNSI0000952,3033.83
Department of Health,Leicestershire Partnership NHS Trust,22/03/22,NURSE - BAND 3 - AGENCY,CHS Phlebotomy Service,HCL NURSING,HNSI0000952,251.30
Department of Health,Leicestershire Partnership NHS Trust,22/03/22,NURSE - BAND 5 - AGENCY,City Planned Care - East,HCL NURSING,HNSI0000952,12822.94
Department of Health,Leicestershire Partnership NHS Trust,22/03/22,NURSE - BAND 5 - AGENCY,City Planned Care - West,HCL NURSING,HNSI0000952,19841.29
Department of Health,Leicestershire Partnership NHS Trust,22/03/22,NURSE - BAND 2 - AGENCY,Clarendon Ward,HCL NURSING,HNSI0000952,3439.39
Department of Health,Leicestershire Partnership NHS Trust,22/03/22,NURSE - BAND 3 - AGENCY,Clarendon Ward,HCL NURSING,HNSI0000952,220.09
Department of Health,Leicestershire Partnership NHS Trust,22/03/22,NURSE - BAND 5 - AGENCY,Clarendon Ward,HCL NURSING,HNSI0000952,5603.57
Department of Health,Leicestershire Partnership NHS Trust,22/03/22,NURSE - BAND 2 - AGENCY,Coalville Snibston Ward,HCL NURSING,HNSI0000952,3250.51
Department of Health,Leicestershire Partnership NHS Trust,22/03/22,NURSE - BAND 5 - AGENCY,Coalville Snibston Ward,HCL NURSING,HNSI0000952,1902.48
Department of Health,Leicestershire Partnership NHS Trust,22/03/22,NURSE - BAND 2 - AGENCY,Coalville Ward 2,HCL NURSING,HNSI0000952,1856.35
Department of Health,Leicestershire Partnership NHS Trust,22/03/22,NURSE - BAND 5 - AGENCY,Coalville Ward 2,HCL NURSING,HNSI0000952,2238.07
Department of Health,Leicestershire Partnership NHS Trust,22/03/22,NURSE - BAND 2 - AGENCY,Dalgliesh Ward,HCL NURSING,HNSI0000952,316.17
Department of Health,Leicestershire Partnership NHS Trust,22/03/22,NURSE - BAND 5 - AGENCY,Dalgliesh Ward,HCL NURSING,HNSI0000952,1086.70
Department of Health,Leicestershire Partnership NHS Trust,22/03/22,NURSE - BAND 5 - AGENCY,"East Planned Care - Melton,Syston,Rutland",HCL NURSING,HNSI0000952,321.06
Department of Health,Leicestershire Partnership NHS Trust,22/03/22,NURSE - BAND 5 - AGENCY,"East Planned Care - Oadby,Wigston & Harborough",HCL NURSING,HNSI0000952,939.99
Department of Health,Leicestershire Partnership NHS Trust,22/03/22,NURSE - BAND 2 - AGENCY,H&B Comm Hosp East Ward,HCL NURSING,HNSI0000952,5134.80
Department of Health,Leicestershire Partnership NHS Trust,22/03/22,NURSE - BAND 5 - AGENCY,H&B Comm Hosp East Ward,HCL NURSING,HNSI0000952,8535.08
Department of Health,Leicestershire Partnership NHS Trust,22/03/22,NURSE - BAND 2 - AGENCY,H&B Comm Hosp North Ward,HCL NURSING,HNSI0000952,5718.92
Department of Health,Leicestershire Partnership NHS Trust,22/03/22,NURSE - BAND 5 - AGENCY,H&B Comm Hosp North Ward,HCL NURSING,HNSI0000952,2766.86
Department of Health,Leicestershire Partnership NHS Trust,22/03/22,NURSE - BAND 2 - AGENCY,Lough Swithland Ward,HCL NURSING,HNSI0000952,735.08
Department of Health,Leicestershire Partnership NHS Trust,22/03/22,NURSE - BAND 5 - AGENCY,Lough Swithland Ward,HCL NURSING,HNSI0000952,4857.44
Department of Health,Leicestershire Partnership NHS Trust,22/03/22,NURSE - BAND 2 - AGENCY,Rutland Ward Nursing,HCL NURSING,HNSI0000952,4550.19
Department of Health,Leicestershire Partnership NHS Trust,22/03/22,NURSE - BAND 5 - AGENCY,Rutland Ward Nursing,HCL NURSING,HNSI0000952,1172.50
Department of Health,Leicestershire Partnership NHS Trust,22/03/22,NURSE - BAND 2 - AGENCY,St Lukes Stroke Ward,HCL NURSING,HNSI0000952,1979.98
Department of Health,Leicestershire Partnership NHS Trust,22/03/22,NURSE - BAND 5 - AGENCY,St Lukes Stroke Ward,HCL NURSING,HNSI0000952,1158.14
Department of Health,Leicestershire Partnership NHS Trust,22/03/22,NURSE - BAND 2 - AGENCY,St Lukes Ward 3,HCL NURSING,HNSI0000952,1264.96
Department of Health,Leicestershire Partnership NHS Trust,22/03/22,NURSE - BAND 5 - AGENCY,St Lukes Ward 3,HCL NURSING,HNSI0000952,3588.57
Department of Health,Leicestershire Partnership NHS Trust,22/03/22,NURSE - BAND 2 - AGENCY,Wakerley Ward,HCL NURSING,HNSI0000952,4893.69
Department of Health,Leicestershire Partnership NHS Trust,22/03/22,NURSE - BAND 5 - AGENCY,Wakerley Ward,HCL NURSING,HNSI0000952,4990.08
Department of Health,Leicestershire Partnership NHS Trust,22/03/22,Services / Recharges from Other NHS Bodies,Transformational and SDI Report,UHL NHS TRUST (RWE),L0258586,143400.80
Department of Health,Leicestershire Partnership NHS Trust,22/03/22,Course / Training Expenses,International Recruitment,UHL NHS TRUST (RWE),L0258585,29906.25
Department of Health,Leicestershire Partnership NHS Trust,22/03/22,SPECIALIST REGISTRAR,Medical Trainees,UHL NHS TRUST (RWE),L0258594,32547.38
Department of Health,Leicestershire Partnership NHS Trust,22/03/22,Services / Recharges from NHS Trusts,Inter Unit I & E Distribution,UHL NHS TRUST (RWE),L0258595,43153.57
Department of Health,Leicestershire Partnership NHS Trust,23/03/22,WIP Project Not in BS - Buildings excl Dwellings,Work in Progress,TILBURY DOUGLAS CONSTRUCTION LTD,22030275,34622.83
Department of Health,Leicestershire Partnership NHS Trust,23/03/22,WIP Project Not in BS - Buildings excl Dwellings,Work in Progress,TILBURY DOUGLAS CONSTRUCTION LTD,22030273,215651.39
Department of Health,Leicestershire Partnership NHS Trust,23/03/22,WIP Project Not in BS - Buildings excl Dwellings,Work in Progress,TILBURY DOUGLAS CONSTRUCTION LTD,22030270,57768.12
Department of Health,Leicestershire Partnership NHS Trust,24/03/22,Contract : Premises Security,"Loughborough Hospital (P136, LPT)",UHL NHS TRUST (RWE),C0026504,-31196.25
Department of Health,Leicestershire Partnership NHS Trust,24/03/22,Services / Recharges from NHS Trusts,Adult Eating Disorder Collaborative,NORTHAMPTONSHIRE HC NHS FT (RP1),5151963,100000.00
Department of Health,Leicestershire Partnership NHS Trust,24/03/22,WIP Project Not in BS - Buildings excl Dwellings,Work in Progress,TILBURY DOUGLAS CONSTRUCTION LTD,22030298,96302.80
Department of Health,Leicestershire Partnership NHS Trust,24/03/22,WIP Project Not in BS - Buildings excl Dwellings,Work in Progress,TILBURY DOUGLAS CONSTRUCTION LTD,22030300,44177.52
Department of Health,Leicestershire Partnership NHS Trust,24/03/22,WIP Project Not in BS - Buildings excl Dwellings,Work in Progress,TILBURY DOUGLAS CONSTRUCTION LTD,22030302,125373.14
Department of Health,Leicestershire Partnership NHS Trust,24/03/22,WIP Project Not in BS - Buildings excl Dwellings,Work in Progress,TILBURY DOUGLAS CONSTRUCTION LTD,22030303,65930.58
Department of Health,Leicestershire Partnership NHS Trust,24/03/22,WIP Project Not in BS - Buildings excl Dwellings,Work in Progress,TILBURY DOUGLAS CONSTRUCTION LTD,22030304,129883.62
Department of Health,Leicestershire Partnership NHS Trust,24/03/22,WIP Project Not in BS - Buildings excl Dwellings,Work in Progress,TILBURY DOUGLAS CONSTRUCTION LTD,22030307,260443.69
Department of Health,Leicestershire Partnership NHS Trust,24/03/22,WIP Project Not in BS - Buildings excl Dwellings,Work in Progress,TILBURY DOUGLAS CONSTRUCTION LTD,22030309,45894.88
Department of Health,Leicestershire Partnership NHS Trust,24/03/22,WIP Project Not in BS - Buildings excl Dwellings,Work in Progress,TILBURY DOUGLAS CONSTRUCTION LTD,22030312,44364.34
Department of Health,Leicestershire Partnership NHS Trust,24/03/22,WIP Project Not in BS - Buildings excl Dwellings,Work in Progress,TILBURY DOUGLAS CONSTRUCTION LTD,22030313,35622.79
Department of Health,Leicestershire Partnership NHS Trust,24/03/22,WIP Project Not in BS - Buildings excl Dwellings,Work in Progress,TILBURY DOUGLAS CONSTRUCTION LTD,22030314,123178.69
Department of Health,Leicestershire Partnership NHS Trust,24/03/22,WIP Project Not in BS - Buildings excl Dwellings,Work in Progress,TILBURY DOUGLAS CONSTRUCTION LTD,22030308,180819.25
Department of Health,Leicestershire Partnership NHS Trust,24/03/22,WIP Project Not in BS - Buildings excl Dwellings,Work in Progress,TILBURY DOUGLAS CONSTRUCTION LTD,22030318,68205.85
Department of Health,Leicestershire Partnership NHS Trust,24/03/22,WIP Project Not in BS - Buildings excl Dwellings,Work in Progress,TILBURY DOUGLAS CONSTRUCTION LTD,22030319,75950.36
Department of Health,Leicestershire Partnership NHS Trust,24/03/22,WIP Project Not in BS - Buildings excl Dwellings,Work in Progress,TILBURY DOUGLAS CONSTRUCTION LTD,22030320,59957.22
Department of Health,Leicestershire Partnership NHS Trust,24/03/22,WIP Project Not in BS - Buildings excl Dwellings,Work in Progress,TILBURY DOUGLAS CONSTRUCTION LTD,22030322,55949.02
Department of Health,Leicestershire Partnership NHS Trust,24/03/22,WIP Project Not in BS - Buildings excl Dwellings,Work in Progress,TILBURY DOUGLAS CONSTRUCTION LTD,22030316,127424.30
Department of Health,Leicestershire Partnership NHS Trust,24/03/22,WIP Project Not in BS - Buildings excl Dwellings,Work in Progress,TILBURY DOUGLAS CONSTRUCTION LTD,22030350,45720.83
Department of Health,Leicestershire Partnership NHS Trust,24/03/22,WIP Project Not in BS - Buildings excl Dwellings,Work in Progress,TILBURY DOUGLAS CONSTRUCTION LTD,22030354,69570.06
Department of Health,Leicestershire Partnership NHS Trust,24/03/22,WIP Project Not in BS - Buildings excl Dwellings,Work in Progress,TILBURY DOUGLAS CONSTRUCTION LTD,22030355,45827.06
Department of Health,Leicestershire Partnership NHS Trust,24/03/22,WIP Project Not in BS - Buildings excl Dwellings,Work in Progress,TILBURY DOUGLAS CONSTRUCTION LTD,22030356,137458.64
Department of Health,Leicestershire Partnership NHS Trust,24/03/22,WIP Project Not in BS - Buildings excl Dwellings,Work in Progress,TILBURY DOUGLAS CONSTRUCTION LTD,22030347,30167.80
Department of Health,Leicestershire Partnership NHS Trust,25/03/22,Nurse - Band 6 -Agency,AMH - Central Access Point,HCL NURSING,HNSI0000989,4315.36
Department of Health,Leicestershire Partnership NHS Trust,25/03/22,Nurse - Band 6 -Agency,Adult City East CMHT - Merlyn Vaz,HCL NURSING,HNSI0000989,841.74
Department of Health,Leicestershire Partnership NHS Trust,25/03/22,Nurse - Band 6 -Agency,Adult County West Leicestershire CMHT,HCL NURSING,HNSI0000989,1069.97
Department of Health,Leicestershire Partnership NHS Trust,25/03/22,NURSE - BAND 2 - AGENCY,Agnes Unit Management,HCL NURSING,HNSI0000989,25856.85
Department of Health,Leicestershire Partnership NHS Trust,25/03/22,NURSE - BAND 5 - AGENCY,Agnes Unit Management,HCL NURSING,HNSI0000989,17345.65
Department of Health,Leicestershire Partnership NHS Trust,25/03/22,NURSE - BAND 2 - AGENCY,Ashby Ward (Bradgate Unit),HCL NURSING,HNSI0000989,4199.56
Department of Health,Leicestershire Partnership NHS Trust,25/03/22,NURSE - BAND 5 - AGENCY,Ashby Ward (Bradgate Unit),HCL NURSING,HNSI0000989,6002.45
Department of Health,Leicestershire Partnership NHS Trust,25/03/22,NURSE - BAND 2 - AGENCY,Aston Ward (Bradgate Unit),HCL NURSING,HNSI0000989,6079.60
Department of Health,Leicestershire Partnership NHS Trust,25/03/22,NURSE - BAND 5 - AGENCY,Aston Ward (Bradgate Unit),HCL NURSING,HNSI0000989,21289.92
Department of Health,Leicestershire Partnership NHS Trust,25/03/22,NURSE - BAND 2 - AGENCY,Beaumont Ward - Bradgate Unit,HCL NURSING,HNSI0000989,4003.98
Department of Health,Leicestershire Partnership NHS Trust,25/03/22,NURSE - BAND 5 - AGENCY,Beaumont Ward - Bradgate Unit,HCL NURSING,HNSI0000989,7687.78
Department of Health,Leicestershire Partnership NHS Trust,25/03/22,NURSE - BAND 2 - AGENCY,Belvoir Psychiatric Intensive Care Unit,HCL NURSING,HNSI0000989,2072.04
Department of Health,Leicestershire Partnership NHS Trust,25/03/22,NURSE - BAND 5 - AGENCY,Belvoir Psychiatric Intensive Care Unit,HCL NURSING,HNSI0000989,4477.90
Department of Health,Leicestershire Partnership NHS Trust,25/03/22,NURSE - BAND 2 - AGENCY,Cedar (Willows),HCL NURSING,HNSI0000989,269.49
Department of Health,Leicestershire Partnership NHS Trust,25/03/22,Nurse - Band 6 -Agency,City West CMHT MHSOP,HCL NURSING,HNSI0000989,1046.25
Department of Health,Leicestershire Partnership NHS Trust,25/03/22,NURSE - BAND 2 - AGENCY,Coleman Ward,HCL NURSING,HNSI0000989,2139.05
Department of Health,Leicestershire Partnership NHS Trust,25/03/22,NURSE - BAND 5 - AGENCY,Coleman Ward,HCL NURSING,HNSI0000989,8251.28
Department of Health,Leicestershire Partnership NHS Trust,25/03/22,NURSE - BAND 5 - AGENCY,Crisis Resolution,HCL NURSING,HNSI0000989,2089.08
Department of Health,Leicestershire Partnership NHS Trust,25/03/22,NURSE - BAND 2 - AGENCY,Griffin Ward (HPC),HCL NURSING,HNSI0000989,12487.65
Department of Health,Leicestershire Partnership NHS Trust,25/03/22,NURSE - BAND 5 - AGENCY,Griffin Ward (HPC),HCL NURSING,HNSI0000989,1920.47
Department of Health,Leicestershire Partnership NHS Trust,25/03/22,NURSE - BAND 2 - AGENCY,Heather Ward,HCL NURSING,HNSI0000989,2098.44
Department of Health,Leicestershire Partnership NHS Trust,25/03/22,NURSE - BAND 5 - AGENCY,Heather Ward,HCL NURSING,HNSI0000989,3584.47
Department of Health,Leicestershire Partnership NHS Trust,25/03/22,NURSE - BAND 2 - AGENCY,Kirby Ward,HCL NURSING,HNSI0000989,3139.75
Department of Health,Leicestershire Partnership NHS Trust,25/03/22,NURSE - BAND 5 - AGENCY,Kirby Ward,HCL NURSING,HNSI0000989,1248.26
Department of Health,Leicestershire Partnership NHS Trust,25/03/22,NURSE - BAND 2 - AGENCY,Maple Ward,HCL NURSING,HNSI0000989,2099.83
Department of Health,Leicestershire Partnership NHS Trust,25/03/22,NURSE - BAND 5 - AGENCY,Maple Ward,HCL NURSING,HNSI0000989,1413.93
Department of Health,Leicestershire Partnership NHS Trust,25/03/22,Nurse - Band 6 -Agency,Mental Health Liaison Team,HCL NURSING,HNSI0000989,1666.08
Department of Health,Leicestershire Partnership NHS Trust,25/03/22,NURSE - BAND 2 - AGENCY,Mill Lodge,HCL NURSING,HNSI0000989,601.89
Department of Health,Leicestershire Partnership NHS Trust,25/03/22,NURSE - BAND 5 - AGENCY,Mill Lodge,HCL NURSING,HNSI0000989,8782.73
Department of Health,Leicestershire Partnership NHS Trust,25/03/22,NURSE - BAND 2 - AGENCY,Phoenix Ward (HPC),HCL NURSING,HNSI0000989,2632.31
Department of Health,Leicestershire Partnership NHS Trust,25/03/22,NURSE - BAND 5 - AGENCY,Phoenix Ward (HPC),HCL NURSING,HNSI0000989,1431.43
Department of Health,Leicestershire Partnership NHS Trust,25/03/22,NURSE - BAND 5 - AGENCY,Place Of Safety Assessment Unit,HCL NURSING,HNSI0000989,4852.46
Department of Health,Leicestershire Partnership NHS Trust,25/03/22,NURSE - BAND 2 - AGENCY,Stewart House,HCL NURSING,HNSI0000989,4142.67
Department of Health,Leicestershire Partnership NHS Trust,25/03/22,NURSE - BAND 5 - AGENCY,Stewart House,HCL NURSING,HNSI0000989,7421.40
Department of Health,Leicestershire Partnership NHS Trust,25/03/22,NURSE - BAND 2 - AGENCY,Sycamore (Willows),HCL NURSING,HNSI0000989,2417.40
Department of Health,Leicestershire Partnership NHS Trust,25/03/22,NURSE - BAND 5 - AGENCY,Sycamore (Willows),HCL NURSING,HNSI0000989,5572.91
Department of Health,Leicestershire Partnership NHS Trust,25/03/22,NURSE - BAND 2 - AGENCY,Thornton Ward - Bradgate Unit,HCL NURSING,HNSI0000989,887.01
Department of Health,Leicestershire Partnership NHS Trust,25/03/22,NURSE - BAND 2 - AGENCY,Watermead Ward (Bradgate Unit),HCL NURSING,HNSI0000989,2671.27
Department of Health,Leicestershire Partnership NHS Trust,25/03/22,NURSE - BAND 5 - AGENCY,Watermead Ward (Bradgate Unit),HCL NURSING,HNSI0000989,5611.80
Department of Health,Leicestershire Partnership NHS Trust,25/03/22,NURSE - BAND 2 - AGENCY,Welford Ward,HCL NURSING,HNSI0000989,449.79
Department of Health,Leicestershire Partnership NHS Trust,25/03/22,NURSE - BAND 5 - AGENCY,Welford Ward,HCL NURSING,HNSI0000989,2887.90
Department of Health,Leicestershire Partnership NHS Trust,25/03/22,Nurse - Band 6 -Agency,CAMHS HUB / CAP,HCL SOCIAL CARE,HWSI0001096,8907.05
Department of Health,Leicestershire Partnership NHS Trust,25/03/22,Nurse - Band 6 -Agency,CAMHS Waiting List Monies,HCL SOCIAL CARE,HWSI0001096,20878.17
Department of Health,Leicestershire Partnership NHS Trust,25/03/22,Nurse - Band 6 -Agency,Crisis Response and Home Treatment,HCL SOCIAL CARE,HWSI0001096,3869.73
Department of Health,Leicestershire Partnership NHS Trust,25/03/22,NURSE - BAND 2 - AGENCY,CAMHS ED Team,HCL NURSING,HNSI0000991,5297.10
Department of Health,Leicestershire Partnership NHS Trust,25/03/22,NURSE - BAND 2 - AGENCY,CAMHS Inpatient Service,HCL NURSING,HNSI0000991,26189.40
Department of Health,Leicestershire Partnership NHS Trust,25/03/22,NURSE - BAND 5 - AGENCY,CAMHS Inpatient Service,HCL NURSING,HNSI0000991,4997.71
Department of Health,Leicestershire Partnership NHS Trust,25/03/22,Nurse - Band 6 -Agency,CAMHS Waiting List Monies,HCL NURSING,HNSI0000991,4458.91
Department of Health,Leicestershire Partnership NHS Trust,25/03/22,NURSE - BAND 2 - AGENCY,Langley Ward ED Inpatient Service,HCL NURSING,HNSI0000991,2229.69
Department of Health,Leicestershire Partnership NHS Trust,25/03/22,NURSE - BAND 5 - AGENCY,Langley Ward ED Inpatient Service,HCL NURSING,HNSI0000991,5157.85
Department of Health,Leicestershire Partnership NHS Trust,28/03/22,Crs_NHS_LT1y -Resus Inventory Supplied.,Balance Sheet Collection,SUPPLY CHAIN CO LTD,1122242633,38920.57
Department of Health,Leicestershire Partnership NHS Trust,29/03/22,NURSE - BAND 2 - AGENCY,Beechwood Ward,HCL NURSING,HNSI0000990,8295.79
Department of Health,Leicestershire Partnership NHS Trust,29/03/22,NURSE - BAND 5 - AGENCY,Beechwood Ward,HCL NURSING,HNSI0000990,2770.87
Department of Health,Leicestershire Partnership NHS Trust,29/03/22,NURSE - BAND 3 - AGENCY,CHS Phlebotomy Service,HCL NURSING,HNSI0000990,164.08
Department of Health,Leicestershire Partnership NHS Trust,29/03/22,NURSE - BAND 5 - AGENCY,City Planned Care - East,HCL NURSING,HNSI0000990,10772.45
Department of Health,Leicestershire Partnership NHS Trust,29/03/22,NURSE - BAND 5 - AGENCY,City Planned Care - West,HCL NURSING,HNSI0000990,17470.91
Department of Health,Leicestershire Partnership NHS Trust,29/03/22,NURSE - BAND 2 - AGENCY,Clarendon Ward,HCL NURSING,HNSI0000990,5025.72
Department of Health,Leicestershire Partnership NHS Trust,29/03/22,NURSE - BAND 5 - AGENCY,Clarendon Ward,HCL NURSING,HNSI0000990,8593.73
Department of Health,Leicestershire Partnership NHS Trust,29/03/22,NURSE - BAND 2 - AGENCY,Coalville Snibston Ward,HCL NURSING,HNSI0000990,2772.35
Department of Health,Leicestershire Partnership NHS Trust,29/03/22,NURSE - BAND 5 - AGENCY,Coalville Snibston Ward,HCL NURSING,HNSI0000990,2577.55
Department of Health,Leicestershire Partnership NHS Trust,29/03/22,NURSE - BAND 2 - AGENCY,Coalville Ward 2,HCL NURSING,HNSI0000990,2111.94
Department of Health,Leicestershire Partnership NHS Trust,29/03/22,NURSE - BAND 5 - AGENCY,Coalville Ward 2,HCL NURSING,HNSI0000990,5465.48
Department of Health,Leicestershire Partnership NHS Trust,29/03/22,NURSE - BAND 2 - AGENCY,Dalgliesh Ward,HCL NURSING,HNSI0000990,1915.63
Department of Health,Leicestershire Partnership NHS Trust,29/03/22,NURSE - BAND 5 - AGENCY,"East Planned Care - Melton,Syston,Rutland",HCL NURSING,HNSI0000990,12.32
Department of Health,Leicestershire Partnership NHS Trust,29/03/22,NURSE - BAND 5 - AGENCY,"East Planned Care - Oadby,Wigston & Harborough",HCL NURSING,HNSI0000990,3237.40
Department of Health,Leicestershire Partnership NHS Trust,29/03/22,NURSE - BAND 2 - AGENCY,H&B Comm Hosp East Ward,HCL NURSING,HNSI0000990,3781.32
Department of Health,Leicestershire Partnership NHS Trust,29/03/22,NURSE - BAND 5 - AGENCY,H&B Comm Hosp East Ward,HCL NURSING,HNSI0000990,7664.94
Department of Health,Leicestershire Partnership NHS Trust,29/03/22,NURSE - BAND 2 - AGENCY,H&B Comm Hosp North Ward,HCL NURSING,HNSI0000990,5441.53
Department of Health,Leicestershire Partnership NHS Trust,29/03/22,NURSE - BAND 5 - AGENCY,H&B Comm Hosp North Ward,HCL NURSING,HNSI0000990,4715.19
Department of Health,Leicestershire Partnership NHS Trust,29/03/22,NURSE - BAND 2 - AGENCY,Lough Swithland Ward,HCL NURSING,HNSI0000990,2643.49
Department of Health,Leicestershire Partnership NHS Trust,29/03/22,NURSE - BAND 5 - AGENCY,Lough Swithland Ward,HCL NURSING,HNSI0000990,5374.67
Department of Health,Leicestershire Partnership NHS Trust,29/03/22,NURSE - BAND 2 - AGENCY,Rutland Ward Nursing,HCL NURSING,HNSI0000990,3745.33
Department of Health,Leicestershire Partnership NHS Trust,29/03/22,NURSE - BAND 5 - AGENCY,Rutland Ward Nursing,HCL NURSING,HNSI0000990,2780.34
Department of Health,Leicestershire Partnership NHS Trust,29/03/22,NURSE - BAND 2 - AGENCY,St Lukes Stroke Ward,HCL NURSING,HNSI0000990,688.07
Department of Health,Leicestershire Partnership NHS Trust,29/03/22,NURSE - BAND 5 - AGENCY,St Lukes Stroke Ward,HCL NURSING,HNSI0000990,291.46
Department of Health,Leicestershire Partnership NHS Trust,29/03/22,NURSE - BAND 2 - AGENCY,St Lukes Ward 3,HCL NURSING,HNSI0000990,1902.61
Department of Health,Leicestershire Partnership NHS Trust,29/03/22,NURSE - BAND 5 - AGENCY,St Lukes Ward 3,HCL NURSING,HNSI0000990,1093.14
Department of Health,Leicestershire Partnership NHS Trust,29/03/22,NURSE - BAND 2 - AGENCY,Wakerley Ward,HCL NURSING,HNSI0000990,11399.67
Department of Health,Leicestershire Partnership NHS Trust,29/03/22,NURSE - BAND 5 - AGENCY,Wakerley Ward,HCL NURSING,HNSI0000990,5893.11
Department of Health,Leicestershire Partnership NHS Trust,29/03/22,Postage & Carriage,CHS - Head of Nursing,HUNTLEIGH HEALTHCARE LTD,I6259932,63.60
Department of Health,Leicestershire Partnership NHS Trust,29/03/22,Printing Costs,CHS - Head of Nursing,HUNTLEIGH HEALTHCARE LTD,I6259932,35683.20
Department of Health,Leicestershire Partnership NHS Trust,30/03/22,WIP Project Not in BS - Plant & Machinery,Work in Progress,GBUK HEALTHCARE,0000006032,75763.14
Department of Health,Leicestershire Partnership NHS Trust,30/03/22,Computer License  Fees,Information Services,ACCENTURE UK LIMITED,3003545167,54482.40
